Workbook

Sheet General Info
A1: General Information
A3: Project Title | B3: Hypothetical Analytical Case
A4: Date | B4: 2004-03-16
A5: Refinery Name | B5: ABC Refining Company
A6: Refinery Location | B6: Somewhere, CA
A7: Gasoline Property | B7: Length
A8: Units | B8: feet
A9: Alternative Method | B9: Laser measurement
A10: ASTM Designated Method | B10: Tape measurement

Sheet Data Entry
A1: Xdata | B1: Ydata | C1: Y-Hat | D1: Y-Yhat | E1: X2 | T1: Linest Array
A2: 5073.57 | B2: 5100 | C2: 5072.584137 | D2: =+IF(B2<>"",B2-C2,"") -> 27.41586279 | E2: =+IF(A2<>"",A2^2,"") -> 25741112.54 | G2: a1 | H2: a2 | I2: a | M2: =IF(Report!D27="Pass",IF(Report!D26="Pass","Pass","Fail"),"Fail") -> Pass | T2: =LINEST($B$2:$B$560,$A$2:$A$560,FALSE,TRUE) -> 0.9998056866 | U2: 0
A3: 5281.71 | B3: 5280 | C3: 5280.683693 | D3: =+IF(B3<>"",B3-C3,"") -> -0.6836928147 | E3: =+IF(A3<>"",A3^2,"") -> 27896460.52 | G3: 0.025 | H3: =+I3-G3 -> 0.025 | I3: 0.05 | T3: 8.469284305e-05
A4: 5307.48 | B4: 5300 | C4: 5306.448685 | D4: -6.448685358 | E4: 28169343.95 | T4: 0.999995996 | U4: 11.68478999
A5: 5352 | B5: 5340 | C5: 5350.960035 | D5: -10.96003452 | E5: 28643904 | T5: 139359885.6 | U5: 558
A6: 5368.49 | B6: 5340 | C6: 5367.44683 | D6: -27.4468303 | E6: 28820684.88 | T6: 1.902740681e+10 | U6: 76186.14893
A7: 5333.87 | B7: 5350 | C7: 5332.833557 | D7: 17.16644257 | E7: 28450169.18 | G7: Graph Table | V7: BF Limits
A8: 5342.72 | B8: 5350 | C8: 5341.681838 | D8: 8.318162248 | E8: 28544657 | G8: Percent | U8: alpha1 | V8: =+Report!D15 -> 0.025
A9: 5356.23 | B9: 5350 | C9: 5355.189213 | D9: -5.189212578 | E9: 28689199.81 | G9: of Range | H9: X | I9: Y-Hat | J9: X2 | K9: Yutb | L9: Bound | M9: Reprod Bound | N9: Reprod Band | O9: Zero | P9: Test | U9: n | V9: =COUNT(A2:A999) -> 559
A10: 5358.29 | B10: 5350 | C10: 5357.248812 | D10: -7.248812292 | E10: 28711271.72 | G10: 0 | H10: =MIN(A1:A999) -> 5073.57 | I10: =Report!D$9*H10 -> 5072.584137 | J10: =+H10^2 -> 25741112.54 | K10: =Report!D$9*H10+Report!D$16*Report!D$13*SQRT(J10/Report!D$18)+Report!D$22 -> 5093.71172 | L10: =+K10-(Report!D$9*H10) -> 21.1275825 | M10: 35 | N10: =+I10+M10 -> 5107.584137 | O10: 0 | P10: =IF(K10<N10,0,1) -> 0 | U10: XA Mean | V10: =AVERAGE(A2:A999) -> 5829.330716
A11: 5360.11 | B11: 5360 | C11: 5359.068459 | D11: 0.9315413581 | E11: 28730779.21 | G11: =+G10+0.025 -> 0.025 | H11: =H$10+G11*(H$50-H$10) -> 5108.5845 | I11: =Report!D$9*H11 -> 5107.591833 | J11: =+H11^2 -> 26097635.59 | K11: =Report!D$9*H11+Report!D$16*Report!D$13*SQRT(J11/Report!D$18)+Report!D$22 -> 5128.724302 | L11: =+K11-(Report!D$9*H11) -> 21.13246839 | M11: =+M10 -> 35 | N11: =+I11+M11 -> 5142.591833 | O11: 0 | P11: =IF(K11<N11,0,1) -> 0 | U11: Large Sx | V11: =SQRT(SUM(E2:E999)/V9) -> 5835.368616
A12: 5363.19 | B12: 5360 | C12: 5362.14786 | D12: -2.147860156 | E12: 28763806.98 | G12: =+G11+0.025 -> 0.05 | H12: 5143.599 | I12: =Report!D$9*H12 -> 5142.59953 | J12: 26456610.67 | K12: =Report!D$9*H12+Report!D$16*Report!D$13*SQRT(J12/Report!D$18)+Report!D$22 -> 5163.736884 | L12: =+K12-(Report!D$9*H12) -> 21.13735427 | M12: =+M11 -> 35 | N12: 5177.59953 | O12: 0 | P12: 0 | U12: XA Max | V12: =+MAX(A2:A999) -> 6474.15
A13: 5378.92 | B13: 5360 | C13: 5377.874804 | D13: -17.87480361 | E13: 28932780.37 | G13: 0.075 | H13: 5178.6135 | I13: =Report!D$9*H13 -> 5177.607226 | J13: 26818037.78 | K13: =Report!D$9*H13+Report!D$16*Report!D$13*SQRT(J13/Report!D$18)+Report!D$22 -> 5198.749466 | L13: =+K13-(Report!D$9*H13) -> 21.14224016 | M13: 35 | N13: 5212.607226 | O13: 0 | P13: 0 | U13: XA Min | V13: =MIN(A2:A999) -> 5073.57
A14: 5365.66 | B14: 5380 | C14: 5364.61738 | D14: 15.3826198 | E14: 28790307.24 | G14: 0.1 | H14: 5213.628 | I14: =Report!D$9*H14 -> 5212.614922 | J14: 27181916.92 | K14: =Report!D$9*H14+Report!D$16*Report!D$13*SQRT(J14/Report!D$18)+Report!D$22 -> 5233.762048 | L14: =+K14-(Report!D$9*H14) -> 21.14712605 | M14: 35 | N14: 5247.614922 | O14: 0 | P14: 0 | U14: Z(XA) Max | V14: =+(V12-V10)/V11 -> 0.110501894 | W14: =SQRT(V9-1) -> 23.62202362 | X14: =ROUND(MIN(V14:W14),3) -> 0.111
A15: 5375.48 | B15: 5380 | C15: 5374.435472 | D15: 5.564527956 | E15: 28895785.23 | G15: 0.125 | H15: 5248.6425 | I15: =Report!D$9*H15 -> 5247.622618 | J15: 27548248.09 | K15: =Report!D$9*H15+Report!D$16*Report!D$13*SQRT(J15/Report!D$18)+Report!D$22 -> 5268.77463 | L15: =+K15-(Report!D$9*H15) -> 21.15201194 | M15: 35 | N15: 5282.622618 | O15: 0 | P15: 0 | U15: Z(XA) Min | V15: =+(V13-V10)/V11 -> -0.1295137917 | W15: =-W14 -> -23.62202362 | X15: =ROUND(MAX(V15:W15),3) -> -0.13
A16: 5383.99 | B16: 5380 | C16: 5382.943818 | D16: -2.943818437 | E16: 28987348.32 | G16: 0.15 | H16: 5283.657 | I16: =Report!D$9*H16 -> 5282.630314 | J16: 27917031.29 | K16: =Report!D$9*H16+Report!D$16*Report!D$13*SQRT(J16/Report!D$18)+Report!D$22 -> 5303.787212 | L16: =+K16-(Report!D$9*H16) -> 21.15689783 | M16: 35 | N16: 5317.630314 | O16: 0 | P16: 0 | U16: phi | V16: =ATAN(X14)-ATAN(X15) -> 0.2398224678 | W16: =2*ATAN(SQRT((V9-1)/2)) -> 3.021998534 | X16: =ROUND(MIN(V16:W16),3) -> 0.24
A17: 5384.3 | B17: 5380 | C17: 5383.253758 | D17: -3.2537582 | E17: 28990686.49 | G17: 0.175 | H17: 5318.6715 | I17: =Report!D$9*H17 -> 5317.638011 | J17: 28288266.52 | K17: =Report!D$9*H17+Report!D$16*Report!D$13*SQRT(J17/Report!D$18)+Report!D$22 -> 5338.799794 | L17: =+K17-(Report!D$9*H17) -> 21.16178372 | M17: 35 | N17: 5352.638011 | O17: 0 | P17: 0 | U17: B.F. Constant | V17: 2.052
A18: 5376.19 | B18: 5390 | C18: 5375.145334 | D18: 14.85466592 | E18: 28903418.92 | G18: 0.2 | H18: 5353.686 | I18: =Report!D$9*H18 -> 5352.645707 | J18: 28661953.79 | K18: =Report!D$9*H18+Report!D$16*Report!D$13*SQRT(J18/Report!D$18)+Report!D$22 -> 5373.812377 | L18: =+K18-(Report!D$9*H18) -> 21.1666696 | M18: 35 | N18: 5387.645707 | O18: 0 | P18: 0 | U18: t | V18: =TINV(0.1,V9-1) -> 1.647588963
A19: 5378.95 | B19: 5390 | C19: 5377.904798 | D19: 12.09520222 | E19: 28933103.1 | G19: 0.225 | H19: 5388.7005 | I19: =Report!D$9*H19 -> 5387.653403 | J19: 29038093.08 | K19: =Report!D$9*H19+Report!D$16*Report!D$13*SQRT(J19/Report!D$18)+Report!D$22 -> 5408.824959 | L19: =+K19-(Report!D$9*H19) -> 21.17155549 | M19: 35 | N19: 5422.653403 | O19: 0 | P19: 0
A20: 5392.21 | B20: 5390 | C20: 5391.162221 | D20: -1.162221181 | E20: 29075928.68 | G20: 0.25 | H20: 5423.715 | I20: =Report!D$9*H20 -> 5422.661099 | J20: 29416684.4 | K20: =Report!D$9*H20+Report!D$16*Report!D$13*SQRT(J20/Report!D$18)+Report!D$22 -> 5443.837541 | L20: =+K20-(Report!D$9*H20) -> 21.17644138 | M20: 35 | N20: 5457.661099 | O20: 0 | P20: 0
A21: 5386.54 | B21: 5400 | C21: 5385.493323 | D21: 14.50667706 | E21: 29014813.17 | G21: 0.275 | H21: 5458.7295 | I21: =Report!D$9*H21 -> 5457.668796 | J21: 29797727.75 | K21: =Report!D$9*H21+Report!D$16*Report!D$13*SQRT(J21/Report!D$18)+Report!D$22 -> 5478.850123 | L21: =+K21-(Report!D$9*H21) -> 21.18132727 | M21: 35 | N21: 5492.668796 | O21: 0 | P21: 0
A22: 5393.34 | B22: 5400 | C22: 5392.292002 | D22: 7.707998393 | E22: 29088116.36 | G22: 0.3 | H22: 5493.744 | I22: =Report!D$9*H22 -> 5492.676492 | J22: 30181223.14 | K22: =Report!D$9*H22+Report!D$16*Report!D$13*SQRT(J22/Report!D$18)+Report!D$22 -> 5513.862705 | L22: =+K22-(Report!D$9*H22) -> 21.18621316 | M22: 35 | N22: 5527.676492 | O22: 0 | P22: 0
A23: 5404.19 | B23: 5400 | C23: 5403.139893 | D23: -3.139893306 | E23: 29205269.56 | G23: 0.325 | H23: 5528.7585 | I23: =Report!D$9*H23 -> 5527.684188 | J23: 30567170.55 | K23: =Report!D$9*H23+Report!D$16*Report!D$13*SQRT(J23/Report!D$18)+Report!D$22 -> 5548.875287 | L23: =+K23-(Report!D$9*H23) -> 21.19109904 | M23: 35 | N23: 5562.684188 | O23: 0 | P23: 0
A24: 5426.57 | B24: 5410 | C24: 5425.515545 | D24: -15.51554457 | E24: 29447661.96 | G24: 0.35 | H24: 5563.773 | I24: =Report!D$9*H24 -> 5562.691884 | J24: 30955570 | K24: =Report!D$9*H24+Report!D$16*Report!D$13*SQRT(J24/Report!D$18)+Report!D$22 -> 5583.887869 | L24: =+K24-(Report!D$9*H24) -> 21.19598493 | M24: 35 | N24: 5597.691884 | O24: 0 | P24: 0
A25: 5406.04 | B25: 5420 | C25: 5404.989534 | D25: 15.01046617 | E25: 29225268.48 | G25: 0.375 | H25: 5598.7875 | I25: =Report!D$9*H25 -> 5597.69958 | J25: 31346421.47 | K25: =Report!D$9*H25+Report!D$16*Report!D$13*SQRT(J25/Report!D$18)+Report!D$22 -> 5618.900451 | L25: =+K25-(Report!D$9*H25) -> 21.20087082 | M25: 35 | N25: 5632.69958 | O25: 0 | P25: 0
A26: 5411.43 | B26: 5420 | C26: 5410.378486 | D26: 9.621513523 | E26: 29283574.64 | G26: 0.4 | H26: 5633.802 | I26: =Report!D$9*H26 -> 5632.707277 | J26: 31739724.98 | K26: =Report!D$9*H26+Report!D$16*Report!D$13*SQRT(J26/Report!D$18)+Report!D$22 -> 5653.913033 | L26: =+K26-(Report!D$9*H26) -> 21.20575671 | M26: 35 | N26: 5667.707277 | O26: 0 | P26: 0
A27: 5416.91 | B27: 5420 | C27: 5415.857422 | D27: 4.142578361 | E27: 29342913.95 | G27: 0.425 | H27: 5668.8165 | I27: =Report!D$9*H27 -> 5667.714973 | J27: 32135480.51 | K27: =Report!D$9*H27+Report!D$16*Report!D$13*SQRT(J27/Report!D$18)+Report!D$22 -> 5688.925615 | L27: =+K27-(Report!D$9*H27) -> 21.2106426 | M27: 35 | N27: 5702.714973 | O27: 0 | P27: 0
A28: 5421.31 | B28: 5420 | C28: 5420.256567 | D28: -0.2565666599 | E28: 29390602.12 | G28: 0.45 | H28: 5703.831 | I28: =Report!D$9*H28 -> 5702.722669 | J28: 32533688.08 | K28: =Report!D$9*H28+Report!D$16*Report!D$13*SQRT(J28/Report!D$18)+Report!D$22 -> 5723.938198 | L28: =+K28-(Report!D$9*H28) -> 21.21552848 | M28: 35 | N28: 5737.722669 | O28: 0 | P28: 0
A29: 5422.28 | B29: 5420 | C29: 5421.226378 | D29: -1.226378176 | E29: 29401120.4 | G29: 0.475 | H29: 5738.8455 | I29: =Report!D$9*H29 -> 5737.730365 | J29: 32934347.67 | K29: =Report!D$9*H29+Report!D$16*Report!D$13*SQRT(J29/Report!D$18)+Report!D$22 -> 5758.95078 | L29: =+K29-(Report!D$9*H29) -> 21.22041437 | M29: 35 | N29: 5772.730365 | O29: 0 | P29: 0
A30: 5429.95 | B30: 5420 | C30: 5428.894888 | D30: -8.894887792 | E30: 29484357 | G30: 0.5 | H30: 5773.86 | I30: =Report!D$9*H30 -> 5772.738061 | J30: 33337459.3 | K30: =Report!D$9*H30+Report!D$16*Report!D$13*SQRT(J30/Report!D$18)+Report!D$22 -> 5793.963362 | L30: =+K30-(Report!D$9*H30) -> 21.22530026 | M30: 35 | N30: 5807.738061 | O30: 0 | P30: =IF(K30<N30,0,1) -> 0
A31: 5441.75 | B31: 5420 | C31: 5440.692595 | D31: -20.69259489 | E31: 29612643.06 | G31: 0.525 | H31: 5808.8745 | I31: =Report!D$9*H31 -> 5807.745758 | J31: 33743022.96 | K31: =Report!D$9*H31+Report!D$16*Report!D$13*SQRT(J31/Report!D$18)+Report!D$22 -> 5828.975944 | L31: =+K31-(Report!D$9*H31) -> 21.23018615 | M31: 35 | N31: 5842.745758 | O31: 0 | P31: 0
A32: 5396.6 | B32: 5430 | C32: 5395.551368 | D32: 34.44863186 | E32: 29123291.56 | G32: 0.55 | H32: 5843.889 | I32: =Report!D$9*H32 -> 5842.753454 | J32: 34151038.64 | K32: =Report!D$9*H32+Report!D$16*Report!D$13*SQRT(J32/Report!D$18)+Report!D$22 -> 5863.988526 | L32: =+K32-(Report!D$9*H32) -> 21.23507204 | M32: 35 | N32: 5877.753454 | O32: 0 | P32: 0
A33: 5417.15 | B33: 5430 | C33: 5416.097375 | D33: 13.902625 | E33: 29345514.12 | G33: 0.575 | H33: 5878.9035 | I33: =Report!D$9*H33 -> 5877.76115 | J33: 34561506.36 | K33: =Report!D$9*H33+Report!D$16*Report!D$13*SQRT(J33/Report!D$18)+Report!D$22 -> 5899.001108 | L33: =+K33-(Report!D$9*H33) -> 21.23995792 | M33: 35 | N33: 5912.76115 | O33: 0 | P33: 0
A34: 5427.51 | B34: 5430 | C34: 5426.455362 | D34: 3.544638083 | E34: 29457864.8 | G34: 0.6 | H34: 5913.918 | I34: =Report!D$9*H34 -> 5912.768846 | J34: 34974426.11 | K34: =Report!D$9*H34+Report!D$16*Report!D$13*SQRT(J34/Report!D$18)+Report!D$22 -> 5934.01369 | L34: =+K34-(Report!D$9*H34) -> 21.24484381 | M34: 35 | N34: 5947.768846 | O34: 0 | P34: 0
A35: 5429.21 | B35: 5430 | C35: 5428.155032 | D35: 1.844968416 | E35: 29476321.22 | G35: 0.625 | H35: 5948.9325 | I35: =Report!D$9*H35 -> 5947.776543 | J35: 35389797.89 | K35: =Report!D$9*H35+Report!D$16*Report!D$13*SQRT(J35/Report!D$18)+Report!D$22 -> 5969.026272 | L35: =+K35-(Report!D$9*H35) -> 21.2497297 | M35: 35 | N35: 5982.776543 | O35: 0 | P35: 0
A36: 5432.59 | B36: 5430 | C36: 5431.534375 | D36: -1.534374804 | E36: 29513034.11 | G36: 0.65 | H36: 5983.947 | I36: =Report!D$9*H36 -> 5982.784239 | J36: 35807621.7 | K36: =Report!D$9*H36+Report!D$16*Report!D$13*SQRT(J36/Report!D$18)+Report!D$22 -> 6004.038854 | L36: =+K36-(Report!D$9*H36) -> 21.25461559 | M36: 35 | N36: 6017.784239 | O36: 0 | P36: 0
A37: 5433.76 | B37: 5430 | C37: 5432.704147 | D37: -2.704147458 | E37: 29525747.74 | G37: 0.675 | H37: 6018.9615 | I37: =Report!D$9*H37 -> 6017.791935 | J37: 36227897.54 | K37: =Report!D$9*H37+Report!D$16*Report!D$13*SQRT(J37/Report!D$18)+Report!D$22 -> 6039.051436 | L37: =+K37-(Report!D$9*H37) -> 21.25950148 | M37: 35 | N37: 6052.791935 | O37: 0 | P37: 0
A38: 5435.37 | B38: 5430 | C38: 5434.313835 | D38: -4.313834613 | E38: 29543247.04 | G38: 0.7 | H38: 6053.976 | I38: =Report!D$9*H38 -> 6052.799631 | J38: 36650625.41 | K38: =Report!D$9*H38+Report!D$16*Report!D$13*SQRT(J38/Report!D$18)+Report!D$22 -> 6074.064019 | L38: =+K38-(Report!D$9*H38) -> 21.26438737 | M38: 35 | N38: 6087.799631 | O38: 0 | P38: 0
A39: 5440.46 | B39: 5430 | C39: 5439.402846 | D39: -9.402845558 | E39: 29598605.01 | G39: 0.725 | H39: 6088.9905 | I39: =Report!D$9*H39 -> 6087.807327 | J39: 37075805.31 | K39: =Report!D$9*H39+Report!D$16*Report!D$13*SQRT(J39/Report!D$18)+Report!D$22 -> 6109.076601 | L39: =+K39-(Report!D$9*H39) -> 21.26927325 | M39: 35 | N39: 6122.807327 | O39: 0 | P39: 0
A40: 5429.97 | B40: 5440 | C40: 5428.914884 | D40: 11.08511609 | E40: 29484574.2 | G40: 0.75 | H40: 6124.005 | I40: =Report!D$9*H40 -> 6122.815024 | J40: 37503437.24 | K40: =Report!D$9*H40+Report!D$16*Report!D$13*SQRT(J40/Report!D$18)+Report!D$22 -> 6144.089183 | L40: =+K40-(Report!D$9*H40) -> 21.27415914 | M40: 35 | N40: 6157.815024 | O40: 0 | P40: 0
A41: 5430.9 | B41: 5440 | C41: 5429.844703 | D41: 10.15529681 | E41: 29494674.81 | G41: 0.775 | H41: 6159.0195 | I41: =Report!D$9*H41 -> 6157.82272 | J41: 37933521.2 | K41: =Report!D$9*H41+Report!D$16*Report!D$13*SQRT(J41/Report!D$18)+Report!D$22 -> 6179.101765 | L41: =+K41-(Report!D$9*H41) -> 21.27904503 | M41: 35 | N41: 6192.82272 | O41: 0 | P41: 0
A42: 5433.93 | B42: 5440 | C42: 5432.874114 | D42: 7.125885576 | E42: 29527595.24 | G42: 0.8 | H42: 6194.034 | I42: =Report!D$9*H42 -> 6192.830416 | J42: 38366057.19 | K42: =Report!D$9*H42+Report!D$16*Report!D$13*SQRT(J42/Report!D$18)+Report!D$22 -> 6214.114347 | L42: =+K42-(Report!D$9*H42) -> 21.28393092 | M42: 35 | N42: 6227.830416 | O42: 0 | P42: 0
A43: 5446.59 | B43: 5440 | C43: 5445.531654 | D43: -5.531654416 | E43: 29665342.63 | G43: 0.825 | H43: 6229.0485 | I43: =Report!D$9*H43 -> 6227.838112 | J43: 38801045.22 | K43: =Report!D$9*H43+Report!D$16*Report!D$13*SQRT(J43/Report!D$18)+Report!D$22 -> 6249.126929 | L43: =+K43-(Report!D$9*H43) -> 21.28881681 | M43: 35 | N43: 6262.838112 | O43: 0 | P43: 0
A44: 5462.47 | B44: 5440 | C44: 5461.408569 | D44: -21.40856872 | E44: 29838578.5 | G44: 0.85 | H44: 6264.063 | I44: =Report!D$9*H44 -> 6262.845808 | J44: 39238485.27 | K44: =Report!D$9*H44+Report!D$16*Report!D$13*SQRT(J44/Report!D$18)+Report!D$22 -> 6284.139511 | L44: =+K44-(Report!D$9*H44) -> 21.29370269 | M44: 35 | N44: 6297.845808 | O44: 0 | P44: 0
A45: 5443.95 | B45: 5450 | C45: 5442.892167 | D45: 7.107832596 | E45: 29636591.6 | G45: 0.875 | H45: 6299.0775 | I45: =Report!D$9*H45 -> 6297.853505 | J45: 39678377.35 | K45: =Report!D$9*H45+Report!D$16*Report!D$13*SQRT(J45/Report!D$18)+Report!D$22 -> 6319.152093 | L45: =+K45-(Report!D$9*H45) -> 21.29858858 | M45: 35 | N45: 6332.853505 | O45: 0 | P45: 0
A46: 5444.6 | B46: 5450 | C46: 5443.542041 | D46: 6.4579589 | E46: 29643669.16 | G46: 0.9 | H46: 6334.092 | I46: =Report!D$9*H46 -> 6332.861201 | J46: 40120721.46 | K46: =Report!D$9*H46+Report!D$16*Report!D$13*SQRT(J46/Report!D$18)+Report!D$22 -> 6354.164675 | L46: =+K46-(Report!D$9*H46) -> 21.30347447 | M46: 35 | N46: 6367.861201 | O46: 0 | P46: 0
A47: 5449.36 | B47: 5450 | C47: 5448.301116 | D47: 1.698883832 | E47: 29695524.41 | G47: 0.925 | H47: 6369.1065 | I47: =Report!D$9*H47 -> 6367.868897 | J47: 40565517.61 | K47: =Report!D$9*H47+Report!D$16*Report!D$13*SQRT(J47/Report!D$18)+Report!D$22 -> 6389.177257 | L47: =+K47-(Report!D$9*H47) -> 21.30836036 | M47: 35 | N47: 6402.868897 | O47: 0 | P47: 0
A48: 5452.88 | B48: 5450 | C48: 5451.820432 | D48: -1.820432185 | E48: 29733900.29 | G48: 0.95 | H48: 6404.121 | I48: =Report!D$9*H48 -> 6402.876593 | J48: 41012765.78 | K48: =Report!D$9*H48+Report!D$16*Report!D$13*SQRT(J48/Report!D$18)+Report!D$22 -> 6424.18984 | L48: =+K48-(Report!D$9*H48) -> 21.31324625 | M48: 35 | N48: 6437.876593 | O48: 0 | P48: 0
A49: 5458.81 | B49: 5450 | C49: 5457.74928 | D49: -7.749279906 | E49: 29798606.62 | G49: 0.975 | H49: 6439.1355 | I49: =Report!D$9*H49 -> 6437.884289 | J49: 41462465.99 | K49: =Report!D$9*H49+Report!D$16*Report!D$13*SQRT(J49/Report!D$18)+Report!D$22 -> 6459.202422 | L49: =+K49-(Report!D$9*H49) -> 21.31813213 | M49: 35 | N49: 6472.884289 | O49: 0 | P49: 0
A50: 5459.02 | B50: 5450 | C50: 5457.959239 | D50: -7.959239101 | E50: 29800899.36 | G50: 1 | H50: =MAX(A1:A999) -> 6474.15 | I50: =Report!D$9*H50 -> 6472.891986 | J50: 41914618.22 | K50: =Report!D$9*H50+Report!D$16*Report!D$13*SQRT(J50/Report!D$18)+Report!D$22 -> 6494.215004 | L50: =+K50-(Report!D$9*H50) -> 21.32301802 | M50: 35 | N50: 6507.891986 | O50: 0 | P50: =IF(K50<N50,0,1) -> 0
A51: 5462.24 | B51: 5450 | C51: 5461.178613 | D51: -11.17861341 | E51: 29836065.82
A52: 5443.46 | B52: 5460 | C52: 5442.402263 | D52: 17.59773738 | E52: 29631256.77
A53: 5449.47 | B53: 5460 | C53: 5448.411095 | D53: 11.58890521 | E53: 29696723.28
A54: 5450.31 | B54: 5460 | C54: 5449.250932 | D54: 10.74906843 | E54: 29705879.1
A55: 5453.07 | B55: 5460 | C55: 5452.010395 | D55: 7.989604735 | E55: 29735972.42
A56: 5464.35 | B56: 5460 | C56: 5463.288203 | D56: -3.28820341 | E56: 29859120.92
A57: 5473.59 | B57: 5460 | C57: 5472.526408 | D57: -12.52640795 | E57: 29960187.49
A58: 5476.52 | B58: 5460 | C58: 5475.455839 | D58: -15.45583862 | E58: 29992271.31
A59: 5490.68 | B59: 5460 | C59: 5489.613087 | D59: -29.61308714 | E59: 30147566.86
A60: 5473.4 | B60: 5470 | C60: 5472.336445 | D60: -2.336444873 | E60: 29958107.56
A61: 5475.31 | B61: 5470 | C61: 5474.246074 | D61: -4.246073735 | E61: 29979019.6
A62: 5480.58 | B62: 5470 | C62: 5479.51505 | D62: -9.515049703 | E62: 30036757.14
A63: 5481.8 | B63: 5470 | C63: 5480.734813 | D63: -10.73481264 | E63: 30050131.24
A64: 5465.21 | B64: 5480 | C64: 5464.148036 | D64: 15.8519637 | E64: 29868520.34
A65: 5475.33 | B65: 5480 | C65: 5474.26607 | D65: 5.733930152 | E65: 29979238.61
A66: 5476.71 | B66: 5480 | C66: 5475.645802 | D66: 4.354198304 | E66: 29994352.42
A67: 5477.21 | B67: 5480 | C67: 5476.145705 | D67: =+IF(B67<>"",B67-C67,"") -> 3.854295461 | E67: =+IF(A67<>"",A67^2,"") -> 29999829.38
A68: 5484.85 | B68: 5480 | C68: 5483.78422 | D68: -3.784219985 | E68: 30083579.52
A69: 5485.68 | B69: 5480 | C69: 5484.614059 | D69: -4.614058704 | E69: 30092685.06
A70: 5479.68 | B70: 5490 | C70: 5478.615225 | D70: 11.38477541 | E70: 30026892.9
A71: 5485.92 | B71: 5490 | C71: 5484.854012 | D71: 5.145987931 | E71: 30095318.25
A72: 5486.16 | B72: 5490 | C72: 5485.093965 | D72: 4.906034566 | E72: 30097951.55
A73: 5486.68 | B73: 5490 | C73: 5485.613864 | D73: 4.386135609 | E73: 30103657.42
A74: 5490.26 | B74: 5490 | C74: 5489.193169 | D74: 0.806831251 | E74: 30142954.87
A75: 5492.1 | B75: 5490 | C75: 5491.032811 | D75: -1.032811212 | E75: 30163162.41
A76: 5492.71 | B76: 5490 | C76: 5491.642693 | D76: -1.642692681 | E76: 30169863.14
A77: 5493.78 | B77: 5490 | C77: 5492.712485 | D77: -2.712484766 | E77: 30181618.69
A78: 5493.92 | B78: 5490 | C78: 5492.852458 | D78: -2.852457562 | E78: 30183156.97
A79: 5496.82 | B79: 5490 | C79: 5495.751894 | D79: -5.751894053 | E79: 30215030.11
A80: 5487.61 | B80: 5500 | C80: 5486.543684 | D80: 13.45631632 | E80: 30113863.51
A81: 5496.08 | B81: 5500 | C81: 5495.012038 | D81: 4.987962155 | E81: 30206895.37
A82: 5496.27 | B82: 5500 | C82: 5495.202001 | D82: 4.797999075 | E82: 30208983.91
A83: 5498.75 | B83: 5500 | C83: 5497.681519 | D83: 2.318480972 | E83: 30236251.56
A84: 5499.8 | B84: 5500 | C84: 5498.731315 | D84: 1.268685001 | E84: 30247800.04
A85: 5500.33 | B85: 5500 | C85: 5499.261212 | D85: 0.7387879873 | E85: 30253630.11
A86: 5504.95 | B86: 5500 | C86: 5503.880314 | D86: -3.880314285 | E86: 30304474.5
A87: 5507.87 | B87: 5500 | C87: 5506.799747 | D87: -6.799746889 | E87: 30336631.94
A88: 5518.47 | B88: 5500 | C88: 5517.397687 | D88: -17.39768717 | E88: 30453511.14
A89: 5526.25 | B89: 5500 | C89: 5525.176175 | D89: -25.17617541 | E89: 30539439.06
A90: 5494.19 | B90: 5510 | C90: 5493.122405 | D90: 16.8775949 | E90: 30186123.76
A91: 5502.26 | B91: 5510 | C91: 5501.190837 | D91: 8.809163012 | E91: 30274865.11
A92: 5517.06 | B92: 5510 | C92: 5515.987961 | D92: -5.987961149 | E92: 30437951.04
A93: 5503 | B93: 5520 | C93: 5501.930693 | D93: 18.0693068 | E93: 30283009
A94: 5516.65 | B94: 5520 | C94: 5515.578041 | D94: 4.421959182 | E94: 30433427.22
A95: 5517.43 | B95: 5520 | C95: 5516.357889 | D95: 3.642110747 | E95: 30442033.8
A96: 5521.84 | B96: 5520 | C96: 5520.767032 | D96: -0.7670323309 | E96: 30490716.99
A97: 5522.72 | B97: 5520 | C97: 5521.646861 | D97: -1.646861335 | E97: 30500436.2
A98: 5524.78 | B98: 5520 | C98: 5523.706461 | D98: -3.706461049 | E98: 30523194.05
A99: 5526.36 | B99: 5520 | C99: 5525.286154 | D99: -5.286154034 | E99: 30540654.85
A100: 5527.25 | B100: 5520 | C100: 5526.175981 | D100: -6.175981095 | E100: 30550492.56
A101: 5530.85 | B101: 5520 | C101: 5529.775282 | D101: -9.775281567 | E101: 30590301.72
A102: 5531.83 | B102: 5520 | C102: 5530.755091 | D102: -10.75509114 | E102: 30601143.15
A103: 5532.41 | B103: 5520 | C103: 5531.334978 | D103: -11.33497844 | E103: 30607560.41
A104: 5529.1 | B104: 5530 | C104: 5528.025622 | D104: 1.974378385 | E104: 30570946.81
A105: 5542.64 | B105: 5530 | C105: 5541.562991 | D105: -11.56299061 | E105: 30720858.17
A106: 5545.99 | B106: 5530 | C106: 5544.91234 | D106: -14.91233966 | E106: 30758005.08
A107: 5523.61 | B107: 5540 | C107: 5522.536688 | D107: 17.4633116 | E107: 30510267.43
A108: 5541.33 | B108: 5540 | C108: 5540.253245 | D108: -0.2532451621 | E108: 30706338.17
A109: 5541.97 | B109: 5540 | C109: 5540.893121 | D109: -0.8931208015 | E109: 30713431.48
A110: 5542.67 | B110: 5540 | C110: 5541.592985 | D110: -1.592984782 | E110: 30721190.73
A111: 5546.65 | B111: 5540 | C111: 5545.572211 | D111: -5.572211415 | E111: 30765326.22
A112: 5550.84 | B112: 5540 | C112: 5549.761397 | D112: -9.761397241 | E112: 30811824.71
A113: 5553.63 | B113: 5540 | C113: 5552.550855 | D113: -12.55085511 | E113: 30842806.18
A114: 5539.88 | B114: 5550 | C114: 5538.803527 | D114: 11.19647308 | E114: 30690270.41
A115: 5545.95 | B115: 5550 | C115: 5544.872347 | D115: 5.127652566 | E115: 30757561.4
A116: 5551.89 | B116: 5550 | C116: 5550.811193 | D116: -0.8111932123 | E116: 30823482.57
A117: 5553.51 | B117: 5550 | C117: 5552.430878 | D117: -2.430878425 | E117: 30841473.32
A118: 5564.63 | B118: 5550 | C118: 5563.548718 | D118: -13.54871766 | E118: 30965107.04
A119: 5567.58 | B119: 5550 | C119: 5566.498144 | D119: -16.49814443 | E119: 30997947.06
A120: 5550.12 | B120: 5560 | C120: 5549.041537 | D120: 10.95846285 | E120: 30803832.01
A121: 5559.5 | B121: 5560 | C121: 5558.419714 | D121: 1.580285513 | E121: 30908040.25
A122: 5559.55 | B122: 5560 | C122: 5558.469705 | D122: 1.530295229 | E122: 30908596.2
A123: 5561.14 | B123: 5560 | C123: 5560.059396 | D123: -0.05939581306 | E123: 30926278.1
A124: 5564.46 | B124: 5560 | C124: 5563.378751 | D124: -3.378750692 | E124: 30963215.09
A125: 5579.57 | B125: 5560 | C125: 5578.485815 | D125: -18.48581462 | E125: 31131601.38
A126: 5561.11 | B126: 5570 | C126: 5560.029402 | D126: 9.970598358 | E126: 30925944.43
A127: 5570.26 | B127: 5570 | C127: 5569.177624 | D127: 0.8223763254 | E127: 31027796.47
A128: 5574.07 | B128: 5570 | C128: 5572.986883 | D128: -2.98688334 | E128: 31070256.36
A129: 5574.09 | B129: 5570 | C129: 5573.006879 | D129: -3.006879454 | E129: 31070479.33
A130: 5581.65 | B130: 5570 | C130: 5580.56541 | D130: -10.56541044 | E130: 31154816.72
A131: 5593.15 | B131: 5570 | C131: 5592.063176 | D131: =+IF(B131<>"",B131-C131,"") -> -22.06317584 | E131: =+IF(A131<>"",A131^2,"") -> 31283326.92
A132: 5574.39 | B132: 5580 | C132: 5573.306821 | D132: 6.69317884 | E132: 31073823.87
A133: 5577.68 | B133: 5580 | C133: 5576.596182 | D133: 3.403818131 | E133: 31110514.18
A134: 5586.07 | B134: 5580 | C134: 5584.984552 | D134: -4.984551579 | E134: 31204178.04
A135: 5579.91 | B135: 5590 | C135: 5578.825749 | D135: 11.17425145 | E135: 31135395.61
A136: 5594.19 | B136: 5590 | C136: 5593.102974 | D136: -3.102973754 | E136: 31294961.76
A137: 5612.61 | B137: 5590 | C137: 5611.519395 | D137: -21.5193945 | E137: 31501391.01
A138: 5579.56 | B138: 5600 | C138: 5578.475817 | D138: 21.52418344 | E138: 31131489.79
A139: 5592.91 | B139: 5600 | C139: 5591.823222 | D139: 8.176777525 | E139: 31280642.27
A140: 5594.44 | B140: 5600 | C140: 5593.352925 | D140: 6.647074824 | E140: 31297758.91
A141: 5601.08 | B141: 5600 | C141: 5599.991635 | D141: 0.008365065326 | E141: 31372097.17
A142: 5601.53 | B142: 5600 | C142: 5600.441547 | D142: -0.4415474936 | E142: 31377138.34
A143: 5602.15 | B143: 5600 | C143: 5601.061427 | D143: -1.061427019 | E143: 31384084.62
A144: 5602.27 | B144: 5610 | C144: 5601.181404 | D144: 8.818596298 | E144: 31385429.15
A145: 5605.25 | B145: 5610 | C145: 5604.160825 | D145: 5.839175352 | E145: 31418827.56
A146: 5605.64 | B146: 5610 | C146: 5604.550749 | D146: 5.449251135 | E146: 31423199.81
A147: 5610.82 | B147: 5610 | C147: 5609.729742 | D147: 0.2702576781 | E147: 31481301.07
A148: 5623.62 | B148: 5610 | C148: 5622.527255 | D148: -12.52725511 | E148: 31625101.9
A149: 5613.91 | B149: 5620 | C149: 5612.819142 | D149: 7.180858107 | E149: 31515985.49
A150: 5617.98 | B150: 5620 | C150: 5616.888351 | D150: 3.111648962 | E150: 31561699.28
A151: 5627.6 | B151: 5620 | C151: 5626.506482 | D151: -6.506481743 | E151: 31669881.76
A152: 5637.03 | B152: 5620 | C152: 5635.934649 | D152: -15.93464937 | E152: 31776107.22
A153: 5651.15 | B153: 5620 | C153: 5650.051906 | D153: -30.05190566 | E153: 31935496.32
A154: 5608.29 | B154: 5630 | C154: 5607.200234 | D154: 22.79976607 | E154: 31452916.72
A155: 5619.44 | B155: 5630 | C155: 5618.348067 | D155: 11.65193266 | E155: 31578105.91
A156: 5634.39 | B156: 5630 | C156: 5633.295162 | D156: -3.295162354 | E156: 31746350.67
A157: 5645.53 | B157: 5630 | C157: 5644.432998 | D157: -14.4329977 | E157: 31872008.98
A158: 5647.54 | B158: 5630 | C158: 5646.442607 | D158: -16.44260713 | E158: 31894708.05
A159: 5650.3 | B159: 5630 | C159: 5649.202071 | D159: -19.20207083 | E159: 31925890.09
A160: 5625.16 | B160: 5640 | C160: 5624.066956 | D160: 15.93304413 | E160: 31642425.03
A161: 5635.06 | B161: 5640 | C161: 5633.965032 | D161: 6.034967836 | E161: 31753901.2
A162: 5640.99 | B162: 5640 | C162: 5639.89388 | D162: 0.1061201143 | E162: 31820768.18
A163: 5644.44 | B163: 5640 | C163: 5643.34321 | D163: -3.343209504 | E163: 31859702.91
A164: 5649.89 | B164: 5640 | C164: 5648.79215 | D164: -8.792150496 | E164: 31921257.01
A165: 5650.91 | B165: 5640 | C165: 5649.811952 | D165: -9.811952296 | E165: 31932783.83
A166: 5654.38 | B166: 5640 | C166: 5653.281278 | D166: -13.28127803 | E166: 31972013.18
A167: 5658.84 | B167: 5640 | C167: 5657.740411 | D167: -17.74041139 | E167: 32022470.15
A168: 5660.49 | B168: 5640 | C168: 5659.390091 | D168: -19.39009077 | E168: 32041147.04
A169: 5616.72 | B169: 5650 | C169: 5615.628596 | D169: 34.37140413 | E169: 31547543.56
A170: 5651.76 | B170: 5650 | C170: 5650.661787 | D170: -0.6617871301 | E170: 31942391.1
A171: 5655.74 | B171: 5650 | C171: 5654.641014 | D171: -4.641013763 | E171: 31987394.95
A172: 5666.66 | B172: 5650 | C172: 5665.558892 | D172: -15.55889186 | E172: 32111035.56
A173: 5635.83 | B173: 5660 | C173: 5634.734883 | D173: 25.26511746 | E173: 31762579.79
A174: 5640.88 | B174: 5660 | C174: 5639.783901 | D174: 20.21609874 | E174: 31819527.17
A175: 5650.65 | B175: 5660 | C175: 5649.552003 | D175: 10.44799718 | E175: 31929845.42
A176: 5661.33 | B176: 5660 | C176: 5660.229928 | D176: -0.2299275505 | E176: 32050657.37
A177: 5665.82 | B177: 5660 | C177: 5664.719055 | D177: -4.719055083 | E177: 32101516.27
A178: 5653.64 | B178: 5670 | C178: 5652.541422 | D178: 17.45857818 | E178: 31963645.25
A179: 5659.39 | B179: 5670 | C179: 5658.290305 | D179: 11.70969548 | E179: 32028695.17
A180: 5661.03 | B180: 5670 | C180: 5659.929986 | D180: 10.07001416 | E180: 32047260.66
A181: 5662.55 | B181: 5670 | C181: 5661.44969 | D181: 8.550309512 | E181: 32064472.5
A182: 5670.9 | B182: 5670 | C182: 5669.798068 | D182: 0.201932029 | E182: 32159106.81
A183: 5674.49 | B183: 5670 | C183: 5673.38737 | D183: -3.387370386 | E183: 32199836.76
A184: 5665.26 | B184: 5680 | C184: 5664.159164 | D184: 15.8408361 | E184: 32095170.87
A185: 5669 | B185: 5680 | C185: 5667.898437 | D185: 12.10156283 | E185: 32137561
A186: 5671.56 | B186: 5680 | C186: 5670.45794 | D186: 9.542060276 | E186: 32166592.83
A187: 5672.99 | B187: 5680 | C187: 5671.887662 | D187: 8.112338144 | E187: 32182815.54
A188: 5688.36 | B188: 5680 | C188: 5687.254675 | D188: -7.254675259 | E188: 32357439.49
A189: 5691.88 | B189: 5680 | C189: 5690.773991 | D189: -10.77399128 | E189: 32397497.93
A190: 5708.84 | B190: 5680 | C190: 5707.730696 | D190: -27.73069572 | E190: 32590854.15
A191: 5677.19 | B191: 5690 | C191: 5676.086846 | D191: 13.91315426 | E191: 32230486.3
A192: 5701.17 | B192: 5690 | C192: 5700.062186 | D192: -10.0621861 | E192: 32503339.37
A193: 5709.46 | B193: 5690 | C193: 5708.350575 | D193: -18.35057525 | E193: 32597933.49
A194: 5689.51 | B194: 5700 | C194: 5688.404452 | D194: 11.5955482 | E194: 32370524.04
A195: 5689.97 | B195: 5700 | C195: 5688.864362 | D195: =+IF(B195<>"",B195-C195,"") -> 11.13563759 | E195: =+IF(A195<>"",A195^2,"") -> 32375758.6
A196: 5691.42 | B196: 5700 | C196: 5690.314081 | D196: 9.685919341 | E196: 32392261.62
A197: 5691.9 | B197: 5700 | C197: 5690.793987 | D197: 9.206012611 | E197: 32397725.61
A198: 5696.8 | B198: 5700 | C198: 5695.693035 | D198: 4.306964747 | E198: 32453530.24
A199: 5719.55 | B199: 5700 | C199: 5718.438615 | D199: -18.43861462 | E199: 32713252.2
A200: 5726.4 | B200: 5700 | C200: 5725.287284 | D200: -25.28728358 | E200: 32791656.96
... 367 more rows

Sheet Relative Precision
A4: Alternative Method (X)
A5: Average:………………………….. | B5: =AVERAGE('Data Entry'!A:A) -> 5829.330716
A7: Designated Method (Y)
A8: Average:………………………….. | B8: =AVERAGE('Data Entry'!B:B) -> 5828.193202
A10: Change of Mean %
A11: (Ybar-Xbar)/Ybar | B11: =(B8-B5)/B8 -> -0.0001951742808

Sheet Report
A1: CARB Site Specific Test Method Cerfification | G1: Date | K1: =+'General Info'!B3 -> Hypothetical Analytical Case
A2: Hypothetical Analytical Case | G2: Refinery Name | K2: =+'General Info'!B4 -> 2004-03-16
A3: Regression through zero origin | G3: Refinery location | K3: =+'General Info'!B5 -> ABC Refining Company
A4: Statistics Report | G4: Gasoline Property | K4: =+'General Info'!B6 -> Somewhere, CA
G5: Alternative Test Method | K5: =+'General Info'!B7 -> Length
G6: Designated Test Method | K6: =+'General Info'!B8 -> feet
A7: For regression equation
B9: b | D9: =+'Data Entry'!T2 -> 0.9998056866 | G9: Coefficient Values
B10: r2 | D10: =+((2*D9*(SUMPRODUCT('Data Entry'!A2:A999,'Data Entry'!B2:B999)-'Data Entry'!V9*Report!D17*AVERAGE('Data Entry'!B2:B999))-D9*D9*(Report!D18-'Data Entry'!V9*Report!D17*Report!D17)))/(SUMSQ('Data Entry'!B2:B999)-'Data Entry'!V9*AVERAGE('Data Entry'!B2:B999)^2) -> 0.9980694128 | I10: Standard
B11: F | D11: =+'Data Entry'!T5 -> 139359885.6 | H11: Coefficients | I11: Error | J11: t Stat | K11: P-value
B12: d.f. | D12: =+'Data Entry'!U5 -> 558 | G12: X Variable | H12: =+D9 -> 0.9998056866 | I12: =+'Data Entry'!T3 -> 8.469284305e-05 | J12: =+H12/I12 -> 11805.07881 | K12: =TDIST(ABS(J12),D12,2) -> 0
B13: s | D13: =+'Data Entry'!U4 -> 11.68478999
B14: Std Error, b1 | D14: =+'Data Entry'!T3 -> 8.469284305e-05 | G14: ANOVA
B15: a1 | D15: =+'Data Entry'!G3 -> 0.025 | H15: df | I15: SS | J15: MS | K15: F
B16: t | D16: =+'Data Entry'!V18 -> 1.647588963 | G16: Regression | H16: 2 | I16: =+'Data Entry'!T6 -> 1.902740681e+10 | J16: =+I16/H16 -> 9513703407 | K16: =+J16/J17 -> 69679942.82
B17: Xbar | D17: =AVERAGE('Data Entry'!A2:A999) -> 5829.330716 | G17: Residual | H17: =+D12 -> 558 | I17: =+'Data Entry'!U6 -> 76186.14893 | J17: =+I17/H17 -> 136.5343171
B18: SX2 | D18: =SUM('Data Entry'!E2:E999) -> 1.903480353e+10 | G18: Total | H18: =+H16+H17 -> 560 | I18: =+I17+I16 -> 19027483000
B19: a2 | D19: =+'Data Entry'!H3 -> 0.025
B20: C2 | D20: =CHIINV(1-D19,COUNT('Data Entry'!A2:A999)-1) -> 494.4386867
B21: Sucb | D21: =SQRT((COUNT('Data Entry'!A2:A999)-1)*D13^2/D20) -> 12.41314386
B22: XDRESucb | D22: =1.645*D21 -> 20.41962165
B23: Anderson-Darling, Crit | D23: =+'Normal Plot Data Sheet'!M5 -> 0.631
B24: Anderson-Darling, Calc | D24: =+'Normal Plot Data Sheet'!K5 -> 0.3312000251
B26: r2 greater than 0.8 | D26: =IF(D10>=0.8,"Pass","Fail") -> Pass
B27: Upper Bound Determination | D27: =IF(SUM('Data Entry'!P10:P50)=0,"Pass","Fail") -> Pass

Sheet Normal Plot Data Sheet
J1: n= | K1: =COUNT(A4:A1003) -> 559 | O1: 0
A2: Resid | B2: Resid | C2: Rank | D2: Rank | E2: Used to Calculate | J2: mean= | K2: =AVERAGE(A4:A1003) -> -0.004796172097
A3: Y-Yhat | B3: (in Z) | D3: (in Z) | E3: Anderson-Darlilng | J3: std. dev.= | K3: =STDEV(A4:A1003) -> 11.684789
A4: 27.41586279 | B4: =+IF(A4<>"",(A4-K$2)/K$3,"") -> 2.346696971 | C4: =IF(A4<>"",RANK(A4,A$4:A$1003,1)+SUM(IF(A$4:A4=A4,1,0))-1.5,"") -> 553.5 | D4: =IF(A4<>"",NORMSINV(C4/($K$1)),"") -> 2.332431617 | E4: =IF(A4<>"",NORMDIST(A4,$K$2,$K$3,1),"") -> 0.990529674 | F4: =IF(A4<>"",-2*C4*LN(E4)-(2*$K$1-2*C4)*LN(1-E4),"") -> 61.78911976 | L4: crit. Val @ | M4: 0.1 | N4: 0.05 | O4: 0.01 | P4: 0.005
A5: -39.7522799 | B5: =+IF(A5<>"",(A5-K$2)/K$3,"") -> -3.401643258 | C5: =IF(A5<>"",RANK(A5,A$4:A$1003,1)+SUM(IF(A$4:A5=A5,1,0))-1.5,"") -> 0.5 | D5: =IF(A5<>"",NORMSINV(C5/($K$1)),"") -> -3.123208656 | E5: =IF(A5<>"",NORMDIST(A5,$K$2,$K$3,1),"") -> 0.0003349100585 | F5: =IF(A5<>"",-2*C5*LN(E5)-(2*$K$1-2*C5)*LN(1-E5),"") -> 8.375805738 | J5: A*= | K5: =(SUM(F4:F1003)/$K$1-$K$1)*(1+0.75/$K$1+2.25/$K$1^2) -> 0.3312000251 | M5: 0.631 | N5: 0.752 | O5: 1.035 | P5: 1.159
A6: -35.39560145 | B6: -3.028792841 | C6: =IF(A6<>"",RANK(A6,A$4:A$1003,1)+SUM(IF(A$4:A6=A6,1,0))-1.5,"") -> 1.5 | D6: -2.784155712 | E6: 0.001227664923 | F6: 21.47761137
A7: -34.37996831 | B7: -2.941873587 | C7: =IF(A7<>"",RANK(A7,A$4:A$1003,1)+SUM(IF(A$4:A7=A7,1,0))-1.5,"") -> 2.5 | D7: -2.614166491 | E7: 0.00163116536 | F7: 33.90927221 | I7: Normal Plot data
A8: -31.95044049 | B8: -2.73395132 | C8: =IF(A8<>"",RANK(A8,A$4:A$1003,1)+SUM(IF(A$4:A8=A8,1,0))-1.5,"") -> 3.5 | D8: -2.497071759 | E8: 0.003128964781 | F8: 43.85110131 | I8: -4 | J8: =+I8-0.5 -> -4.5 | K8: =+I8+0.5 -> -3.5 | L8: =+$K$2+J8*$K$3 -> -52.58634668 | M8: =+$K$2+K8*$K$3 -> -40.90155768 | N8: =(COUNTIF(A$4:A$1004,"<"&M8)-COUNTIF(A$4:A$1004,"<"&L8)) -> 0 | O8: =(COUNTIF(A$4:A$1004,"<"&M8)-COUNTIF(A$4:A$1004,"<"&L8))/K$1 -> 0 | P8: =NORMDIST(J8,0,1,1) -> 3.397673125e-06 | Q8: =NORMDIST(K8,0,1,1) -> 0.000232629079 | R8: =+Q8-P8 -> 0.0002292314059
A9: -30.05190566 | B9: -2.571472149 | C9: =IF(A9<>"",RANK(A9,A$4:A$1003,1)+SUM(IF(A$4:A9=A9,1,0))-1.5,"") -> 4.5 | D9: -2.406636663 | E9: 0.005063358009 | F9: 53.20105665 | I9: =+I8+1 -> -3 | J9: =+I9-0.5 -> -3.5 | K9: =+I9+0.5 -> -2.5 | L9: =+$K$2+J9*$K$3 -> -40.90155768 | M9: =+$K$2+K9*$K$3 -> -29.21676868 | N9: =(COUNTIF(A$4:A$1004,"<"&M9)-COUNTIF(A$4:A$1004,"<"&L9)) -> 7 | O9: =(COUNTIF(A$4:A$1004,"<"&M9)-COUNTIF(A$4:A$1004,"<"&L9))/K$1 -> 0.01252236136 | P9: =NORMDIST(J9,0,1,1) -> 0.000232629079 | Q9: =NORMDIST(K9,0,1,1) -> 0.006209665326 | R9: =+Q9-P9 -> 0.005977036247
A10: -29.77616229 | B10: -2.547873659 | C10: =IF(A10<>"",RANK(A10,A$4:A$1003,1)+SUM(IF(A$4:A10=A10,1,0))-1.5,"") -> 5.5 | D10: -2.332431617 | E10: 0.005419085726 | F10: 63.41135101 | I10: =+I9+1 -> -2 | J10: =+I10-0.5 -> -2.5 | K10: =+I10+0.5 -> -1.5 | L10: =+$K$2+J10*$K$3 -> -29.21676868 | M10: =+$K$2+K10*$K$3 -> -17.53197968 | N10: =(COUNTIF(A$4:A$1004,"<"&M10)-COUNTIF(A$4:A$1004,"<"&L10)) -> 29 | O10: =(COUNTIF(A$4:A$1004,"<"&M10)-COUNTIF(A$4:A$1004,"<"&L10))/K$1 -> 0.0518783542 | P10: =NORMDIST(J10,0,1,1) -> 0.006209665326 | Q10: =NORMDIST(K10,0,1,1) -> 0.06680720127 | R10: =+Q10-P10 -> 0.06059753594
A11: -29.61308714 | B11: -2.533917468 | C11: =IF(A11<>"",RANK(A11,A$4:A$1003,1)+SUM(IF(A$4:A11=A11,1,0))-1.5,"") -> 6.5 | D11: -2.269205796 | E11: 0.005639764716 | F11: 73.56244781 | I11: -1 | J11: -1.5 | K11: -0.5 | L11: -17.53197968 | M11: -5.847190673 | N11: 127 | O11: 0.2271914132 | P11: 0.06680720127 | Q11: 0.3085375387 | R11: 0.2417303375
A12: -28.07204158 | B12: -2.402032711 | C12: =IF(A12<>"",RANK(A12,A$4:A$1003,1)+SUM(IF(A$4:A12=A12,1,0))-1.5,"") -> 7.5 | D12: -2.213929465 | E12: 0.008152125201 | F12: 81.170795 | I12: 0 | J12: -0.5 | K12: 0.5 | L12: -5.847190673 | M12: 5.837598329 | N12: 223 | O12: 0.3989266547 | P12: 0.3085375387 | Q12: 0.6914624613 | R12: 0.3829249225
A13: -27.73069572 | B13: -2.372819872 | C13: =IF(A13<>"",RANK(A13,A$4:A$1003,1)+SUM(IF(A$4:A13=A13,1,0))-1.5,"") -> 8.5 | D13: -2.164689796 | E13: 0.00882643524 | F13: 90.17111542 | I13: 1 | J13: 0.5 | K13: 1.5 | L13: 5.837598329 | M13: 17.52238733 | N13: 140 | O13: 0.2504472272 | P13: 0.6914624613 | Q13: 0.9331927987 | R13: 0.2417303375
A14: -27.4468303 | B14: -2.348526286 | C14: =IF(A14<>"",RANK(A14,A$4:A$1003,1)+SUM(IF(A$4:A14=A14,1,0))-1.5,"") -> 9.5 | D14: -2.120199002 | E14: 0.009423934384 | F14: 99.03156374 | I14: 2 | J14: 1.5 | K14: 2.5 | L14: 17.52238733 | M14: 29.20717633 | N14: 28 | O14: 0.05008944544 | P14: 0.9331927987 | Q14: 0.9937903347 | R14: 0.06059753594
A15: -25.28728358 | B15: -2.163709366 | C15: =IF(A15<>"",RANK(A15,A$4:A$1003,1)+SUM(IF(A$4:A15=A15,1,0))-1.5,"") -> 10.5 | D15: -2.079547202 | E15: 0.01524333087 | F15: 104.7065701 | I15: 3 | J15: 2.5 | K15: 3.5 | L15: 29.20717633 | M15: 40.89196534 | N15: 5 | O15: 0.008944543828 | P15: 0.9937903347 | Q15: 0.9997673709 | R15: 0.005977036247
A16: -25.17617541 | B16: -2.154200579 | C16: =IF(A16<>"",RANK(A16,A$4:A$1003,1)+SUM(IF(A$4:A16=A16,1,0))-1.5,"") -> 11.5 | D16: -2.04206684 | E16: 0.01561222274 | F16: 112.9033645 | I16: 4 | J16: 3.5 | K16: 4.5 | L16: 40.89196534 | M16: 52.57675434 | N16: 0 | O16: 0 | P16: 0.9997673709 | Q16: 0.9999966023 | R16: 0.0002292314059
A17: -23.91200277 | B17: -2.04601098 | C17: =IF(A17<>"",RANK(A17,A$4:A$1003,1)+SUM(IF(A$4:A17=A17,1,0))-1.5,"") -> 12.5 | D17: -2.00725311 | E17: 0.02037764521 | F17: 119.8357503
A18: -23.78400473 | B18: -2.035056735 | C18: =IF(A18<>"",RANK(A18,A$4:A$1003,1)+SUM(IF(A$4:A18=A18,1,0))-1.5,"") -> 13.5 | D18: -1.974714675 | E18: 0.02092258233 | F18: 127.475724 | I18: q-q line plot data
A19: -23.6309612 | B19: -2.021959063 | C19: =IF(A19<>"",RANK(A19,A$4:A$1003,1)+SUM(IF(A$4:A19=A19,1,0))-1.5,"") -> 14.5 | D19: -1.944141797 | E19: 0.02159029058 | F19: 134.9991892 | I19: -4
A20: -22.64002403 | B20: -1.937153324 | C20: =IF(A20<>"",RANK(A20,A$4:A$1003,1)+SUM(IF(A$4:A20=A20,1,0))-1.5,"") -> 15.5 | D20: -1.915284967 | E20: 0.02636330199 | F20: 141.7506795 | I20: 4
A21: -22.55866121 | B21: -1.930190184 | C21: =IF(A21<>"",RANK(A21,A$4:A$1003,1)+SUM(IF(A$4:A21=A21,1,0))-1.5,"") -> 16.5 | D21: -1.887940123 | E21: 0.02679163867 | F21: 148.9143872
A22: -22.1004449 | B22: -1.890975415 | C22: =IF(A22<>"",RANK(A22,A$4:A$1003,1)+SUM(IF(A$4:A22=A22,1,0))-1.5,"") -> 17.5 | D22: -1.861938164 | E22: 0.02931381308 | F22: 155.7608437
A23: -22.06317584 | B23: -1.887785878 | C23: =IF(A23<>"",RANK(A23,A$4:A$1003,1)+SUM(IF(A$4:A23=A23,1,0))-1.5,"") -> 18.5 | D23: -1.837137331 | E23: 0.02952735089 | F23: 162.7300128
A24: -21.51971045 | B24: -1.841275377 | C24: =IF(A24<>"",RANK(A24,A$4:A$1003,1)+SUM(IF(A$4:A24=A24,1,0))-1.5,"") -> 19.5 | D24: -1.813417569 | E24: 0.03279060708 | F24: 169.2610633
A25: -21.5193945 | B25: -1.841248338 | C25: =IF(A25<>"",RANK(A25,A$4:A$1003,1)+SUM(IF(A$4:A25=A25,1,0))-1.5,"") -> 20.5 | D25: -1.790676273 | E25: 0.03279258734 | F25: 176.0293382
A26: -21.40856872 | B26: -1.831763718 | C26: =IF(A26<>"",RANK(A26,A$4:A$1003,1)+SUM(IF(A$4:A26=A26,1,0))-1.5,"") -> 21.5 | D26: -1.768825039 | E26: 0.03349331546 | F26: 182.6676981
A27: -20.93675048 | B27: -1.791384876 | C27: =IF(A27<>"",RANK(A27,A$4:A$1003,1)+SUM(IF(A$4:A27=A27,1,0))-1.5,"") -> 22.5 | D27: -1.747787131 | E27: 0.03661577707 | F27: 188.8535004
A28: -20.69259489 | B28: -1.770489712 | C28: =IF(A28<>"",RANK(A28,A$4:A$1003,1)+SUM(IF(A$4:A28=A28,1,0))-1.5,"") -> 23.5 | D28: -1.727495504 | E28: 0.03832279832 | F28: 195.1512449
A29: -19.45703806 | B29: -1.664749092 | C29: =IF(A29<>"",RANK(A29,A$4:A$1003,1)+SUM(IF(A$4:A29=A29,1,0))-1.5,"") -> 24.5 | D29: -1.707891215 | E29: 0.0479814121 | F29: 201.3736369
A30: -19.39009077 | B30: -1.659019653 | C30: =IF(A30<>"",RANK(A30,A$4:A$1003,1)+SUM(IF(A$4:A30=A30,1,0))-1.5,"") -> 25.5 | D30: -1.688922165 | E30: 0.04855591603 | F30: 207.3862434
A31: -19.20207083 | B31: -1.642928653 | C31: =IF(A31<>"",RANK(A31,A$4:A$1003,1)+SUM(IF(A$4:A31=A31,1,0))-1.5,"") -> 26.5 | D31: -1.670542062 | E31: 0.05019884794 | F31: 213.4137506
A32: -19.11516099 | B32: -1.635490792 | C32: =IF(A32<>"",RANK(A32,A$4:A$1003,1)+SUM(IF(A$4:A32=A32,1,0))-1.5,"") -> 27.5 | D32: -1.652709588 | E32: 0.05097310171 | F32: 219.3193257
A33: -18.85301956 | B33: -1.613056374 | C33: =IF(A33<>"",RANK(A33,A$4:A$1003,1)+SUM(IF(A$4:A33=A33,1,0))-1.5,"") -> 28.5 | D33: -1.635387698 | E33: 0.05336613031 | F33: 225.2313005
A34: -18.82108225 | B34: -1.610323137 | C34: =IF(A34<>"",RANK(A34,A$4:A$1003,1)+SUM(IF(A$4:A34=A34,1,0))-1.5,"") -> 29.5 | D34: -1.618543049 | E34: 0.05366366539 | F34: 230.9876454
A35: -18.80885868 | B35: -1.609277027 | C35: =IF(A35<>"",RANK(A35,A$4:A$1003,1)+SUM(IF(A$4:A35=A35,1,0))-1.5,"") -> 30.5 | D35: -1.602145517 | E35: 0.05377789007 | F35: 236.7252566
A36: -18.48581462 | B36: -1.581630481 | C36: =IF(A36<>"",RANK(A36,A$4:A$1003,1)+SUM(IF(A$4:A36=A36,1,0))-1.5,"") -> 31.5 | D36: -1.58616779 | E36: 0.05686697575 | F36: 242.3916295
A37: -18.43861462 | B37: -1.577591041 | C37: =IF(A37<>"",RANK(A37,A$4:A$1003,1)+SUM(IF(A$4:A37=A37,1,0))-1.5,"") -> 32.5 | D37: -1.570585029 | E37: 0.0573297959 | F37: 247.9986053
A38: -18.35057525 | B38: -1.570056513 | C38: =IF(A38<>"",RANK(A38,A$4:A$1003,1)+SUM(IF(A$4:A38=A38,1,0))-1.5,"") -> 33.5 | D38: -1.555374568 | E38: 0.05820098223 | F38: 253.5596709
A39: -17.87480361 | B39: -1.529339334 | C39: =IF(A39<>"",RANK(A39,A$4:A$1003,1)+SUM(IF(A$4:A39=A39,1,0))-1.5,"") -> 34.5 | D39: -1.540515675 | E39: 0.06309017163 | F39: 259.0216087
A40: -17.74041139 | B40: -1.517837867 | C40: =IF(A40<>"",RANK(A40,A$4:A$1003,1)+SUM(IF(A$4:A40=A40,1,0))-1.5,"") -> 35.5 | D40: -1.525989328 | E40: 0.06452763819 | F40: 264.4257273
A41: -17.39768717 | B41: -1.488507066 | C41: =IF(A41<>"",RANK(A41,A$4:A$1003,1)+SUM(IF(A$4:A41=A41,1,0))-1.5,"") -> 36.5 | D41: -1.511778032 | E41: 0.06830861004 | F41: 269.8490803
A42: -17.34995597 | B42: -1.484422165 | C42: =IF(A42<>"",RANK(A42,A$4:A$1003,1)+SUM(IF(A$4:A42=A42,1,0))-1.5,"") -> 37.5 | D42: -1.497865659 | E42: 0.06884847901 | F42: 275.0891304
A43: -17.18917346 | B43: -1.470662182 | C43: =IF(A43<>"",RANK(A43,A$4:A$1003,1)+SUM(IF(A$4:A43=A43,1,0))-1.5,"") -> 38.5 | D43: -1.48423731 | E43: 0.07069124922 | F43: 280.3265106
A44: -17.0491671 | B44: -1.458680249 | C44: =IF(A44<>"",RANK(A44,A$4:A$1003,1)+SUM(IF(A$4:A44=A44,1,0))-1.5,"") -> 39.5 | D44: -1.470879186 | E44: 0.07232656736 | F44: 285.5019944
A45: -16.88336879 | B45: -1.444491006 | C45: =IF(A45<>"",RANK(A45,A$4:A$1003,1)+SUM(IF(A$4:A45=A45,1,0))-1.5,"") -> 40.5 | D45: -1.457778487 | E45: 0.07430045396 | F45: 290.6328627
A46: -16.75424121 | B46: -1.433440093 | C46: =IF(A46<>"",RANK(A46,A$4:A$1003,1)+SUM(IF(A$4:A46=A46,1,0))-1.5,"") -> 41.5 | D46: -1.444923312 | E46: 0.07586605376 | F46: 295.6989267
A47: -16.55233694 | B47: -1.416160853 | C47: =IF(A47<>"",RANK(A47,A$4:A$1003,1)+SUM(IF(A$4:A47=A47,1,0))-1.5,"") -> 42.5 | D47: -1.43230258 | E47: 0.07836420726 | F47: 300.7411019
A48: -16.49814443 | B48: -1.411522986 | C48: =IF(A48<>"",RANK(A48,A$4:A$1003,1)+SUM(IF(A$4:A48=A48,1,0))-1.5,"") -> 43.5 | D48: -1.419905953 | E48: 0.07904523143 | F48: 305.6799787
A49: -16.44260713 | B49: -1.406770029 | C49: =IF(A49<>"",RANK(A49,A$4:A$1003,1)+SUM(IF(A$4:A49=A49,1,0))-1.5,"") -> 44.5 | D49: -1.407723771 | E49: 0.07974779629 | F49: 310.5884991
A50: -15.93464937 | B50: -1.363298318 | C50: =IF(A50<>"",RANK(A50,A$4:A$1003,1)+SUM(IF(A$4:A50=A50,1,0))-1.5,"") -> 45.5 | D50: -1.395746993 | E50: 0.08639425594 | F50: 315.6396709
A51: -15.83247684 | B51: -1.354554256 | C51: =IF(A51<>"",RANK(A51,A$4:A$1003,1)+SUM(IF(A$4:A51=A51,1,0))-1.5,"") -> 46.5 | D51: -1.383967145 | E51: 0.0877798081 | F51: 320.4326382
A52: -15.70278449 | B52: -1.343455009 | C52: =IF(A52<>"",RANK(A52,A$4:A$1003,1)+SUM(IF(A$4:A52=A52,1,0))-1.5,"") -> 47.5 | D52: -1.372376272 | E52: 0.08956234246 | F52: 325.2058709
A53: -15.55889186 | B53: -1.331140484 | C53: =IF(A53<>"",RANK(A53,A$4:A$1003,1)+SUM(IF(A$4:A53=A53,1,0))-1.5,"") -> 48.5 | D53: -1.360966899 | E53: 0.09157139511 | F53: 329.9475232
A54: -15.51554457 | B54: -1.327430765 | C54: =IF(A54<>"",RANK(A54,A$4:A$1003,1)+SUM(IF(A$4:A54=A54,1,0))-1.5,"") -> 49.5 | D54: -1.349731988 | E54: 0.09218311427 | F54: 334.56398
A55: -15.45583862 | B55: -1.322321048 | C55: =IF(A55<>"",RANK(A55,A$4:A$1003,1)+SUM(IF(A$4:A55=A55,1,0))-1.5,"") -> 50.5 | D55: -1.338664908 | E55: 0.09303063335 | F55: 339.1640674
A56: -15.36231935 | B56: -1.314317543 | C56: =IF(A56<>"",RANK(A56,A$4:A$1003,1)+SUM(IF(A$4:A56=A56,1,0))-1.5,"") -> 51.5 | D56: -1.327759401 | E56: 0.09436968299 | F56: 343.7461037
A57: -15.35366609 | B57: -1.313576986 | C57: =IF(A57<>"",RANK(A57,A$4:A$1003,1)+SUM(IF(A$4:A57=A57,1,0))-1.5,"") -> 52.5 | D57: -1.317009559 | E57: 0.09449429885 | F57: 348.2697642
A58: -15.31536818 | B58: -1.310299399 | C58: =IF(A58<>"",RANK(A58,A$4:A$1003,1)+SUM(IF(A$4:A58=A58,1,0))-1.5,"") -> 53.5 | D58: -1.306409791 | E58: 0.09504728541 | F58: 352.7829266
A59: -14.96653216 | B59: -1.280445542 | C59: =IF(A59<>"",RANK(A59,A$4:A$1003,1)+SUM(IF(A$4:A59=A59,1,0))-1.5,"") -> 54.5 | D59: -1.295954807 | E59: 0.1001942428 | F59: 357.2968074
A60: -14.91233966 | B60: -1.275807675 | C60: =IF(A60<>"",RANK(A60,A$4:A$1003,1)+SUM(IF(A$4:A60=A60,1,0))-1.5,"") -> 55.5 | D60: -1.285639591 | E60: 0.1010117569 | F60: 361.700258
A61: -14.87128502 | B61: -1.272294163 | C61: =IF(A61<>"",RANK(A61,A$4:A$1003,1)+SUM(IF(A$4:A61=A61,1,0))-1.5,"") -> 56.5 | D61: -1.275459386 | E61: 0.1016343108 | F61: 366.0742305
A62: -14.72573164 | B62: -1.259837509 | C62: =IF(A62<>"",RANK(A62,A$4:A$1003,1)+SUM(IF(A$4:A62=A62,1,0))-1.5,"") -> 57.5 | D62: -1.265409677 | E62: 0.1038639928 | F62: 370.4294677
A63: -14.62963734 | B63: -1.251613629 | C63: =IF(A63<>"",RANK(A63,A$4:A$1003,1)+SUM(IF(A$4:A63=A63,1,0))-1.5,"") -> 58.5 | D63: -1.25548617 | E63: 0.1053553429 | F63: 374.738721
A64: -14.4329977 | B64: -1.234784944 | C64: =IF(A64<>"",RANK(A64,A$4:A$1003,1)+SUM(IF(A$4:A64=A64,1,0))-1.5,"") -> 59.5 | D64: -1.245684781 | E64: 0.1084552762 | F64: 379.033546
A65: -14.18502298 | B65: -1.213562932 | C65: =IF(A65<>"",RANK(A65,A$4:A$1003,1)+SUM(IF(A$4:A65=A65,1,0))-1.5,"") -> 60.5 | D65: -1.236001622 | E65: 0.1124573345 | F65: 383.3477357
A66: -14.06391675 | B66: -1.203198498 | C66: =IF(A66<>"",RANK(A66,A$4:A$1003,1)+SUM(IF(A$4:A66=A66,1,0))-1.5,"") -> 61.5 | D66: -1.226432989 | E66: 0.1144497579 | F66: 387.5555341
A67: -13.92228321 | B67: -1.191077309 | C67: =IF(A67<>"",RANK(A67,A$4:A$1003,1)+SUM(IF(A$4:A67=A67,1,0))-1.5,"") -> 62.5 | D67: -1.216975347 | E67: 0.1168116185 | F67: 391.7463337
A68: -13.89288737 | B68: -1.188561573 | C68: =IF(A68<>"",RANK(A68,A$4:A$1003,1)+SUM(IF(A$4:A68=A68,1,0))-1.5,"") -> 63.5 | D68: -1.207625325 | E68: 0.1173061183 | F68: 395.8108094
A69: -13.85953814 | B69: =+IF(A69<>"",(A69-K$2)/K$3,"") -> -1.185707501 | C69: =IF(A69<>"",RANK(A69,A$4:A$1003,1)+SUM(IF(A$4:A69=A69,1,0))-1.5,"") -> 64.5 | D69: =IF(A69<>"",NORMSINV(C69/($K$1)),"") -> -1.198379702 | E69: =IF(A69<>"",NORMDIST(A69,$K$2,$K$3,1),"") -> 0.1178689156 | F69: =IF(A69<>"",-2*C69*LN(E69)-(2*$K$1-2*C69)*LN(1-E69),"") -> 399.8605497
A70: -13.73733594 | B70: -1.175249272 | C70: =IF(A70<>"",RANK(A70,A$4:A$1003,1)+SUM(IF(A$4:A70=A70,1,0))-1.5,"") -> 65.5 | D70: -1.189235399 | E70: 0.1199475015 | F70: 403.9245042
A71: -13.54871766 | B71: -1.159107065 | C71: =IF(A71<>"",RANK(A71,A$4:A$1003,1)+SUM(IF(A$4:A71=A71,1,0))-1.5,"") -> 66.5 | D71: -1.180189471 | E71: 0.1232062732 | F71: 407.999341
A72: -13.37405083 | B72: -1.144158842 | C72: =IF(A72<>"",RANK(A72,A$4:A$1003,1)+SUM(IF(A$4:A72=A72,1,0))-1.5,"") -> 67.5 | D72: -1.171239099 | E72: 0.1262788842 | F72: 412.0495759
A73: -13.33600174 | B73: -1.14090255 | C73: =IF(A73<>"",RANK(A73,A$4:A$1003,1)+SUM(IF(A$4:A73=A73,1,0))-1.5,"") -> 68.5 | D73: -1.162381583 | E73: 0.1269552391 | F73: 415.9459876
A74: -13.28127803 | B74: -1.136219221 | C74: =IF(A74<>"",RANK(A74,A$4:A$1003,1)+SUM(IF(A$4:A74=A74,1,0))-1.5,"") -> 69.5 | D74: -1.153614336 | E74: 0.1279324141 | F74: 419.8328865
A75: -13.15246639 | B75: -1.125195348 | C75: =IF(A75<>"",RANK(A75,A$4:A$1003,1)+SUM(IF(A$4:A75=A75,1,0))-1.5,"") -> 70.5 | D75: -1.144934875 | E75: 0.1302531321 | F75: 423.7401984
A76: -13.13770135 | B76: -1.123931735 | C76: =IF(A76<>"",RANK(A76,A$4:A$1003,1)+SUM(IF(A$4:A76=A76,1,0))-1.5,"") -> 71.5 | D76: -1.136340819 | E76: 0.1305209935 | F76: 427.5441935
A77: -13.11272299 | B77: -1.121794053 | C77: =IF(A77<>"",RANK(A77,A$4:A$1003,1)+SUM(IF(A$4:A77=A77,1,0))-1.5,"") -> 72.5 | D77: -1.127829882 | E77: 0.1309750076 | F77: 431.3416121
A78: -12.79197158 | B78: -1.094343715 | C78: =IF(A78<>"",RANK(A78,A$4:A$1003,1)+SUM(IF(A$4:A78=A78,1,0))-1.5,"") -> 73.5 | D78: -1.119399865 | E78: 0.1369021298 | F78: 435.2654804
A79: -12.65782818 | B79: -1.082863542 | C79: =IF(A79<>"",RANK(A79,A$4:A$1003,1)+SUM(IF(A$4:A79=A79,1,0))-1.5,"") -> 74.5 | D79: -1.111048657 | E79: 0.1394344981 | F79: 439.0643036
A80: -12.61758713 | B80: -1.079419659 | C80: =IF(A80<>"",RANK(A80,A$4:A$1003,1)+SUM(IF(A$4:A80=A80,1,0))-1.5,"") -> 75.5 | D80: -1.102774226 | E80: 0.1402003455 | F80: 442.7381417
A81: -12.60395163 | B81: -1.078252714 | C81: =IF(A81<>"",RANK(A81,A$4:A$1003,1)+SUM(IF(A$4:A81=A81,1,0))-1.5,"") -> 76.5 | D81: -1.094574617 | E81: 0.1404604965 | F81: 446.3737829
A82: -12.55085511 | B82: -1.073708642 | C82: =IF(A82<>"",RANK(A82,A$4:A$1003,1)+SUM(IF(A$4:A82=A82,1,0))-1.5,"") -> 77.5 | D82: -1.086447947 | E82: 0.1414766434 | F82: 450.0185604
A83: -12.52725511 | B83: -1.071688923 | C83: =IF(A83<>"",RANK(A83,A$4:A$1003,1)+SUM(IF(A$4:A83=A83,1,0))-1.5,"") -> 78.5 | D83: -1.078392402 | E83: 0.141929889 | F83: 453.6300261
A84: -12.52640795 | B84: -1.071616422 | C84: =IF(A84<>"",RANK(A84,A$4:A$1003,1)+SUM(IF(A$4:A84=A84,1,0))-1.5,"") -> 79.5 | D84: -1.070406236 | E84: 0.1419461771 | F84: 457.2286894
A85: -12.39038855 | B85: -1.059975698 | C85: =IF(A85<>"",RANK(A85,A$4:A$1003,1)+SUM(IF(A$4:A85=A85,1,0))-1.5,"") -> 80.5 | D85: -1.062487761 | E85: 0.1445778277 | F85: 460.8091841
A86: -12.19844877 | B86: -1.043549233 | C86: =IF(A86<>"",RANK(A86,A$4:A$1003,1)+SUM(IF(A$4:A86=A86,1,0))-1.5,"") -> 81.5 | D86: -1.054635352 | E86: 0.1483469956 | F86: 464.3869752
A87: -11.87186796 | B87: -1.015600007 | C87: =IF(A87<>"",RANK(A87,A$4:A$1003,1)+SUM(IF(A$4:A87=A87,1,0))-1.5,"") -> 82.5 | D87: -1.04684744 | E87: 0.1549099509 | F87: 468.1117854
A88: -11.7599462 | B88: -1.006021591 | C88: =IF(A88<>"",RANK(A88,A$4:A$1003,1)+SUM(IF(A$4:A88=A88,1,0))-1.5,"") -> 83.5 | D88: -1.039122509 | E88: 0.1572025919 | F88: 471.6349926
A89: -11.56299061 | B89: -0.9891658666 | C89: =IF(A89<>"",RANK(A89,A$4:A$1003,1)+SUM(IF(A$4:A89=A89,1,0))-1.5,"") -> 84.5 | D89: -1.031459094 | E89: 0.1612909978 | F89: 475.2691294
A90: -11.33497844 | B90: -0.9696522773 | C90: =IF(A90<>"",RANK(A90,A$4:A$1003,1)+SUM(IF(A$4:A90=A90,1,0))-1.5,"") -> 85.5 | D90: -1.023855781 | E90: 0.1661099228 | F90: 478.9890864
A91: -11.17861341 | B91: -0.9562703474 | C91: =IF(A91<>"",RANK(A91,A$4:A$1003,1)+SUM(IF(A$4:A91=A91,1,0))-1.5,"") -> 86.5 | D91: -1.016311201 | E91: 0.1694678335 | F91: 482.5666859
A92: -11.17726861 | B92: -0.9561552576 | C92: =IF(A92<>"",RANK(A92,A$4:A$1003,1)+SUM(IF(A$4:A92=A92,1,0))-1.5,"") -> 87.5 | D92: -1.008824031 | E92: 0.1694969004 | F92: 485.7484834
A93: -11.0520273 | B93: -0.945436937 | C93: =IF(A93<>"",RANK(A93,A$4:A$1003,1)+SUM(IF(A$4:A93=A93,1,0))-1.5,"") -> 88.5 | D93: -1.001392991 | E93: 0.1722179261 | F93: 489.1960818
A94: -10.96003452 | B94: -0.9375640715 | C94: =IF(A94<>"",RANK(A94,A$4:A$1003,1)+SUM(IF(A$4:A94=A94,1,0))-1.5,"") -> 89.5 | D94: -0.99401684 | E94: 0.1742342413 | F94: 492.5425249
A95: -10.77399128 | B95: -0.9216422394 | C95: =IF(A95<>"",RANK(A95,A$4:A$1003,1)+SUM(IF(A$4:A95=A95,1,0))-1.5,"") -> 90.5 | D95: -0.9866943788 | E95: 0.1783576091 | F95: 496.111286
A96: -10.75509114 | B96: -0.9200247403 | C96: =IF(A96<>"",RANK(A96,A$4:A$1003,1)+SUM(IF(A$4:A96=A96,1,0))-1.5,"") -> 91.5 | D96: -0.9794244441 | E96: 0.1787799154 | F96: 499.2142224
A97: -10.73904842 | B97: -0.9186517828 | C97: =IF(A97<>"",RANK(A97,A$4:A$1003,1)+SUM(IF(A$4:A97=A97,1,0))-1.5,"") -> 92.5 | D97: -0.9722059087 | E97: 0.1791388687 | F97: 502.3003252
A98: -10.73481264 | B98: -0.918289279 | C98: =IF(A98<>"",RANK(A98,A$4:A$1003,1)+SUM(IF(A$4:A98=A98,1,0))-1.5,"") -> 93.5 | D98: -0.9650376802 | E98: 0.1792337193 | F98: 505.3533071
A99: -10.60850891 | B99: -0.9074800355 | C99: =IF(A99<>"",RANK(A99,A$4:A$1003,1)+SUM(IF(A$4:A99=A99,1,0))-1.5,"") -> 94.5 | D99: -0.9579186988 | E99: 0.1820765012 | F99: 508.6454867
A100: -10.56541044 | B100: -0.9037916106 | C100: =IF(A100<>"",RANK(A100,A$4:A$1003,1)+SUM(IF(A$4:A100=A100,1,0))-1.5,"") -> 95.5 | D100: -0.9508479365 | E100: 0.1830529555 | F100: 511.7359306
A101: -10.54823818 | B101: -0.9023219855 | C101: =IF(A101<>"",RANK(A101,A$4:A$1003,1)+SUM(IF(A$4:A101=A101,1,0))-1.5,"") -> 96.5 | D101: -0.9438243959 | E101: 0.1834429249 | F101: 514.7584592
A102: -10.16248262 | B102: -0.8693085041 | C102: =IF(A102<>"",RANK(A102,A$4:A$1003,1)+SUM(IF(A$4:A102=A102,1,0))-1.5,"") -> 97.5 | D102: -0.9368471084 | E102: 0.1923392063 | F102: 518.6213877
A103: -10.152451 | B103: -0.8684499845 | C103: =IF(A103<>"",RANK(A103,A$4:A$1003,1)+SUM(IF(A$4:A103=A103,1,0))-1.5,"") -> 98.5 | D103: -0.9299151334 | E103: 0.1925740207 | F103: 521.5185981
A104: -10.13245489 | B104: -0.8667386902 | C104: =IF(A104<>"",RANK(A104,A$4:A$1003,1)+SUM(IF(A$4:A104=A104,1,0))-1.5,"") -> 99.5 | D104: -0.9230275575 | E104: 0.1930426007 | F104: 524.4351973
A105: -10.0621861 | B105: -0.8607249929 | C105: =IF(A105<>"",RANK(A105,A$4:A$1003,1)+SUM(IF(A$4:A105=A105,1,0))-1.5,"") -> 100.5 | D105: -0.9161834929 | E105: 0.1946947623 | F105: 527.4623587
A106: -10.0530352 | B106: -0.8599418465 | C106: =IF(A106<>"",RANK(A106,A$4:A$1003,1)+SUM(IF(A$4:A106=A106,1,0))-1.5,"") -> 101.5 | D106: -0.9093820766 | E106: 0.1949105498 | F106: 530.3222814
A107: -10.05056086 | B107: -0.859730089 | C107: =IF(A107<>"",RANK(A107,A$4:A$1003,1)+SUM(IF(A$4:A107=A107,1,0))-1.5,"") -> 102.5 | D107: -0.9026224697 | E107: 0.1949689223 | F107: 533.1639207
A108: -10.03169429 | B108: -0.8581154623 | C108: =IF(A108<>"",RANK(A108,A$4:A$1003,1)+SUM(IF(A$4:A108=A108,1,0))-1.5,"") -> 103.5 | D108: -0.8959038561 | E108: 0.1954143551 | F108: 536.0318282
A109: -9.91889181 | B109: -0.848461674 | C109: =IF(A109<>"",RANK(A109,A$4:A$1003,1)+SUM(IF(A$4:A109=A109,1,0))-1.5,"") -> 104.5 | D109: -0.8892254421 | E109: 0.198090454 | F109: 539.0479384
A110: -9.882503465 | B110: -0.8453475104 | C110: =IF(A110<>"",RANK(A110,A$4:A$1003,1)+SUM(IF(A$4:A110=A110,1,0))-1.5,"") -> 105.5 | D110: -0.882586455 | E110: 0.1989584209 | F110: 541.9042157
A111: -9.811952296 | B111: -0.8393096463 | C111: =IF(A111<>"",RANK(A111,A$4:A$1003,1)+SUM(IF(A$4:A111=A111,1,0))-1.5,"") -> 106.5 | D111: -0.8759861428 | E111: 0.2006477858 | F111: 544.7995168
A112: -9.790577819 | B112: -0.8374803897 | C112: =IF(A112<>"",RANK(A112,A$4:A$1003,1)+SUM(IF(A$4:A112=A112,1,0))-1.5,"") -> 107.5 | D112: -0.8694237733 | E112: 0.2011612977 | F112: 547.5947605
A113: -9.784499594 | B113: -0.836960207 | C113: =IF(A113<>"",RANK(A113,A$4:A$1003,1)+SUM(IF(A$4:A113=A113,1,0))-1.5,"") -> 108.5 | D113: -0.8628986334 | E113: 0.201307468 | F113: 550.3601212
A114: -9.775281567 | B114: -0.8361713158 | C114: =IF(A114<>"",RANK(A114,A$4:A$1003,1)+SUM(IF(A$4:A114=A114,1,0))-1.5,"") -> 109.5 | D114: -0.8564100282 | E114: 0.2015292664 | F114: 553.1249361
A115: -9.761397241 | B115: -0.8349830765 | C115: =IF(A115<>"",RANK(A115,A$4:A$1003,1)+SUM(IF(A$4:A115=A115,1,0))-1.5,"") -> 110.5 | D115: -0.8499572809 | E115: 0.2018636185 | F115: 555.8878008
A116: -9.740903484 | B116: -0.8332291931 | C116: =IF(A116<>"",RANK(A116,A$4:A$1003,1)+SUM(IF(A$4:A116=A116,1,0))-1.5,"") -> 111.5 | D116: -0.8435397314 | E116: 0.2023577406 | F116: 558.6462438
A117: -9.738395579 | B117: -0.8330145632 | C117: =IF(A117<>"",RANK(A117,A$4:A$1003,1)+SUM(IF(A$4:A117=A117,1,0))-1.5,"") -> 112.5 | D117: -0.8371567365 | E117: 0.202418258 | F117: 561.389966
A118: -9.673673813 | B118: -0.8274755872 | C118: =IF(A118<>"",RANK(A118,A$4:A$1003,1)+SUM(IF(A$4:A118=A118,1,0))-1.5,"") -> 113.5 | D118: -0.8308076686 | E118: 0.2039837768 | F118: 564.1341825
A119: -9.515049703 | B119: -0.8139003219 | C119: =IF(A119<>"",RANK(A119,A$4:A$1003,1)+SUM(IF(A$4:A119=A119,1,0))-1.5,"") -> 114.5 | D119: -0.8244919159 | E119: 0.2078510281 | F119: 566.885974
A120: -9.424851932 | B120: -0.8061810751 | C120: =IF(A120<>"",RANK(A120,A$4:A$1003,1)+SUM(IF(A$4:A120=A120,1,0))-1.5,"") -> 115.5 | D120: -0.8182088811 | E120: 0.2100692246 | F120: 569.5969329
A121: -9.402845558 | B121: -0.8042977399 | C121: =IF(A121<>"",RANK(A121,A$4:A$1003,1)+SUM(IF(A$4:A121=A121,1,0))-1.5,"") -> 116.5 | D121: -0.8119579815 | E121: 0.2106125213 | F121: 572.2530178
A122: -9.390971493 | B122: -0.8032815414 | C122: =IF(A122<>"",RANK(A122,A$4:A$1003,1)+SUM(IF(A$4:A122=A122,1,0))-1.5,"") -> 117.5 | D122: -0.8057386483 | E122: 0.2109060122 | F122: 574.8966018
A123: -9.305406457 | B123: -0.7959587703 | C123: =IF(A123<>"",RANK(A123,A$4:A$1003,1)+SUM(IF(A$4:A123=A123,1,0))-1.5,"") -> 118.5 | D123: -0.7995503261 | E123: 0.213028 | F123: 577.5352638
A124: -9.074919942 | B124: -0.7762334235 | C124: =IF(A124<>"",RANK(A124,A$4:A$1003,1)+SUM(IF(A$4:A124=A124,1,0))-1.5,"") -> 119.5 | D124: -0.7933924726 | E124: 0.2188055873 | F124: 580.2301829
A125: -9.024647272 | B125: -0.7719310206 | C125: =IF(A125<>"",RANK(A125,A$4:A$1003,1)+SUM(IF(A$4:A125=A125,1,0))-1.5,"") -> 120.5 | D125: -0.787264558 | E125: 0.2200776417 | F125: 582.8076592
A126: -8.990484448 | B126: -0.76900732 | C126: =IF(A126<>"",RANK(A126,A$4:A$1003,1)+SUM(IF(A$4:A126=A126,1,0))-1.5,"") -> 121.5 | D126: -0.7811660645 | E126: 0.2209444825 | F126: 585.3558951
A127: -8.952435355 | B127: -0.7657510273 | C127: =IF(A127<>"",RANK(A127,A$4:A$1003,1)+SUM(IF(A$4:A127=A127,1,0))-1.5,"") -> 122.5 | D127: -0.7750964865 | E127: 0.2219122293 | F127: 587.8905883
A128: -8.894887792 | B128: -0.7608260293 | C128: =IF(A128<>"",RANK(A128,A$4:A$1003,1)+SUM(IF(A$4:A128=A128,1,0))-1.5,"") -> 123.5 | D128: -0.7690553295 | E128: 0.2233804926 | F128: 590.4159742
A129: -8.792150496 | B129: -0.752033633 | C129: =IF(A129<>"",RANK(A129,A$4:A$1003,1)+SUM(IF(A$4:A129=A129,1,0))-1.5,"") -> 124.5 | D129: -0.76304211 | E129: 0.2260154166 | F129: 592.941553
A130: -8.572791579 | B130: -0.7332606011 | C130: =IF(A130<>"",RANK(A130,A$4:A$1003,1)+SUM(IF(A$4:A130=A130,1,0))-1.5,"") -> 125.5 | D130: -0.7570563556 | E130: 0.2316997501 | F130: 595.5597849
A131: -8.545836521 | B131: -0.7309537508 | C131: =IF(A131<>"",RANK(A131,A$4:A$1003,1)+SUM(IF(A$4:A131=A131,1,0))-1.5,"") -> 126.5 | D131: -0.7510976038 | E131: 0.2324037014 | F131: 597.9826762
A132: -8.515559965 | B132: -0.7283626423 | C132: =IF(A132<>"",RANK(A132,A$4:A$1003,1)+SUM(IF(A$4:A132=A132,1,0))-1.5,"") -> 127.5 | D132: -0.7451654025 | E132: 0.2331958126 | F132: 600.3956245
A133: -8.391165807 | B133: =+IF(A133<>"",(A133-K$2)/K$3,"") -> -0.7177168225 | C133: =IF(A133<>"",RANK(A133,A$4:A$1003,1)+SUM(IF(A$4:A133=A133,1,0))-1.5,"") -> 128.5 | D133: =IF(A133<>"",NORMSINV(C133/($K$1)),"") -> -0.7392593092 | E133: =IF(A133<>"",NORMDIST(A133,$K$2,$K$3,1),"") -> 0.2364659543 | F133: =IF(A133<>"",-2*C133*LN(E133)-(2*$K$1-2*C133)*LN(1-E133),"") -> 602.8771191
A134: -8.355873441 | B134: -0.7146964542 | C134: =IF(A134<>"",RANK(A134,A$4:A$1003,1)+SUM(IF(A$4:A134=A134,1,0))-1.5,"") -> 129.5 | D134: -0.7333788909 | E134: 0.2373983146 | F134: 605.2518002
A135: -8.34449702 | B135: -0.7137228448 | C135: =IF(A135<>"",RANK(A135,A$4:A$1003,1)+SUM(IF(A$4:A135=A135,1,0))-1.5,"") -> 130.5 | D135: -0.7275237236 | E135: 0.2376992886 | F135: 607.5934032
A136: -8.28507345 | B136: -0.7086372955 | C136: =IF(A136<>"",RANK(A136,A$4:A$1003,1)+SUM(IF(A$4:A136=A136,1,0))-1.5,"") -> 131.5 | D136: -0.7216933925 | E136: 0.239274793 | F136: 609.9555448
A137: -8.227277065 | B137: -0.703691003 | C137: =IF(A137<>"",RANK(A137,A$4:A$1003,1)+SUM(IF(A$4:A137=A137,1,0))-1.5,"") -> 132.5 | D137: -0.7158874912 | E137: 0.2408126122 | F137: 612.2972581
A138: -8.10203575 | B138: -0.6929726824 | C138: =IF(A138<>"",RANK(A138,A$4:A$1003,1)+SUM(IF(A$4:A138=A138,1,0))-1.5,"") -> 133.5 | D138: -0.7101056217 | E138: 0.2441633476 | F138: 614.6684833
A139: -7.959239101 | B139: -0.6807519525 | C139: =IF(A139<>"",RANK(A139,A$4:A$1003,1)+SUM(IF(A$4:A139=A139,1,0))-1.5,"") -> 134.5 | D139: -0.7043473943 | E139: 0.2480142285 | F139: 617.0555612
A140: -7.952347283 | B140: -0.6801621415 | C140: =IF(A140<>"",RANK(A140,A$4:A$1003,1)+SUM(IF(A$4:A140=A140,1,0))-1.5,"") -> 135.5 | D140: -0.6986124269 | E140: 0.2482009004 | F140: 619.2804122
A141: -7.936237438 | B141: -0.6787834392 | C141: =IF(A141<>"",RANK(A141,A$4:A$1003,1)+SUM(IF(A$4:A141=A141,1,0))-1.5,"") -> 136.5 | D141: -0.6929003452 | E141: 0.2486375442 | F141: 621.5079415
A142: -7.749279906 | B142: -0.6627833616 | C142: =IF(A142<>"",RANK(A142,A$4:A$1003,1)+SUM(IF(A$4:A142=A142,1,0))-1.5,"") -> 137.5 | D142: -0.6872107826 | E142: 0.2537346556 | F142: 623.877437
A143: -7.64240752 | B143: -0.6536370786 | C143: =IF(A143<>"",RANK(A143,A$4:A$1003,1)+SUM(IF(A$4:A143=A143,1,0))-1.5,"") -> 138.5 | D143: -0.6815433792 | E143: 0.256672825 | F143: 626.1635664
A144: -7.572985893 | B144: -0.6476958821 | C144: =IF(A144<>"",RANK(A144,A$4:A$1003,1)+SUM(IF(A$4:A144=A144,1,0))-1.5,"") -> 139.5 | D144: -0.6758977827 | E144: 0.2585908341 | F144: 628.3808066
A145: -7.568783675 | B145: -0.6473362507 | C145: =IF(A145<>"",RANK(A145,A$4:A$1003,1)+SUM(IF(A$4:A145=A145,1,0))-1.5,"") -> 140.5 | D145: -0.6702736472 | E145: 0.2587071724 | F145: 630.4923745
A146: -7.543274107 | B146: -0.6451531075 | C146: =IF(A146<>"",RANK(A146,A$4:A$1003,1)+SUM(IF(A$4:A146=A146,1,0))-1.5,"") -> 141.5 | D146: -0.6646706336 | E146: 0.2594139855 | F146: 632.6221846
A147: -7.533524873 | B147: -0.6443187548 | C147: =IF(A147<>"",RANK(A147,A$4:A$1003,1)+SUM(IF(A$4:A147=A147,1,0))-1.5,"") -> 142.5 | D147: -0.6590884093 | E147: 0.2596843782 | F147: 634.7275001
A148: -7.254675259 | B148: -0.6204544288 | C148: =IF(A148<>"",RANK(A148,A$4:A$1003,1)+SUM(IF(A$4:A148=A148,1,0))-1.5,"") -> 143.5 | D148: -0.6535266479 | E148: 0.2674793239 | F148: 637.1307782
A149: -7.248812292 | B149: -0.6199526683 | C149: =IF(A149<>"",RANK(A149,A$4:A$1003,1)+SUM(IF(A$4:A149=A149,1,0))-1.5,"") -> 144.5 | D149: -0.6479850291 | E149: 0.2676444745 | F149: 639.1542171
A150: -7.162783176 | B150: -0.6125901805 | C150: =IF(A150<>"",RANK(A150,A$4:A$1003,1)+SUM(IF(A$4:A150=A150,1,0))-1.5,"") -> 145.5 | D150: -0.6424632386 | E150: 0.2700736763 | F150: 641.2858566
A151: -6.815890298 | B151: -0.5829026202 | C151: =IF(A151<>"",RANK(A151,A$4:A$1003,1)+SUM(IF(A$4:A151=A151,1,0))-1.5,"") -> 146.5 | D151: -0.6369609678 | E151: 0.2799794283 | F151: 643.9927545
A152: -6.799746889 | B152: -0.5815210455 | C152: =IF(A152<>"",RANK(A152,A$4:A$1003,1)+SUM(IF(A$4:A152=A152,1,0))-1.5,"") -> 147.5 | D152: -0.6314779139 | E152: 0.2804446692 | F152: 645.924041
A153: -6.797023726 | B153: -0.5812879935 | C153: =IF(A153<>"",RANK(A153,A$4:A$1003,1)+SUM(IF(A$4:A153=A153,1,0))-1.5,"") -> 148.5 | D153: -0.6260137792 | E153: 0.2805231856 | F153: 647.8150059
A154: -6.66620183 | B154: -0.5700920793 | C154: =IF(A154<>"",RANK(A154,A$4:A$1003,1)+SUM(IF(A$4:A154=A154,1,0))-1.5,"") -> 149.5 | D154: -0.6205682718 | E154: 0.2843076235 | F154: 650.0113042
A155: -6.61758991 | B155: -0.5659318055 | C155: =IF(A155<>"",RANK(A155,A$4:A$1003,1)+SUM(IF(A$4:A155=A155,1,0))-1.5,"") -> 150.5 | D155: -0.6151411046 | E155: 0.2857200697 | F155: 651.9799932
A156: -6.506481743 | B156: -0.5564230188 | C156: =IF(A156<>"",RANK(A156,A$4:A$1003,1)+SUM(IF(A$4:A156=A156,1,0))-1.5,"") -> 151.5 | D156: -0.6097319957 | E156: 0.2889608533 | F156: 654.1012594
A157: -6.504289786 | B157: -0.5562354282 | C157: =IF(A157<>"",RANK(A157,A$4:A$1003,1)+SUM(IF(A$4:A157=A157,1,0))-1.5,"") -> 152.5 | D157: -0.6043406681 | E157: 0.2890249614 | F157: 655.9077773
A158: -6.448685358 | B158: -0.5514767262 | C158: =IF(A158<>"",RANK(A158,A$4:A$1003,1)+SUM(IF(A$4:A158=A158,1,0))-1.5,"") -> 153.5 | D158: -0.5989668497 | E158: 0.2906534584 | F158: 657.8428403
A159: -6.39597191 | B159: -0.5469654382 | C159: =IF(A159<>"",RANK(A159,A$4:A$1003,1)+SUM(IF(A$4:A159=A159,1,0))-1.5,"") -> 154.5 | D159: -0.5936102728 | E159: 0.2922012384 | F159: 659.753303
A160: -6.352093414 | B160: -0.5432102574 | C160: =IF(A160<>"",RANK(A160,A$4:A$1003,1)+SUM(IF(A$4:A160=A160,1,0))-1.5,"") -> 155.5 | D160: -0.5882706744 | E160: 0.2934925225 | F160: 661.6250143
A161: -6.284897306 | B161: -0.5374595239 | C161: =IF(A161<>"",RANK(A161,A$4:A$1003,1)+SUM(IF(A$4:A161=A161,1,0))-1.5,"") -> 156.5 | D161: -0.582947796 | E161: 0.2954751183 | F161: 663.5368749
A162: -6.175981095 | B162: -0.5281383277 | C162: =IF(A162<>"",RANK(A162,A$4:A$1003,1)+SUM(IF(A$4:A162=A162,1,0))-1.5,"") -> 157.5 | D162: -0.5776413834 | E162: 0.2987016652 | F162: 665.5396274
A163: -6.135208838 | B163: -0.524648983 | C163: =IF(A163<>"",RANK(A163,A$4:A$1003,1)+SUM(IF(A$4:A163=A163,1,0))-1.5,"") -> 158.5 | D163: -0.5723511864 | E163: 0.2999136144 | F163: 667.3484593
A164: -6.028834096 | B164: -0.5155452891 | C164: =IF(A164<>"",RANK(A164,A$4:A$1003,1)+SUM(IF(A$4:A164=A164,1,0))-1.5,"") -> 159.5 | D164: -0.5670769591 | E164: 0.3030860153 | F164: 669.3161582
A165: -5.987961149 | B165: -0.5120473271 | C165: =IF(A165<>"",RANK(A165,A$4:A$1003,1)+SUM(IF(A$4:A165=A165,1,0))-1.5,"") -> 160.5 | D165: -0.5618184595 | E165: 0.3043089436 | F165: 671.0886305
A166: -5.933304567 | B166: -0.5073697431 | C166: =IF(A166<>"",RANK(A166,A$4:A$1003,1)+SUM(IF(A$4:A166=A166,1,0))-1.5,"") -> 161.5 | D166: -0.5565754496 | E166: 0.3059477057 | F166: 672.882507
A167: -5.879112065 | B167: -0.5027318758 | C167: =IF(A167<>"",RANK(A167,A$4:A$1003,1)+SUM(IF(A$4:A167=A167,1,0))-1.5,"") -> 162.5 | D167: -0.5513476951 | E167: 0.3075763978 | F167: 674.6583201
A168: -5.751894053 | B168: -0.4918443867 | C168: =IF(A168<>"",RANK(A168,A$4:A$1003,1)+SUM(IF(A$4:A168=A168,1,0))-1.5,"") -> 163.5 | D168: -0.5461349654 | E168: 0.3114146777 | F168: 676.6227632
A169: -5.62778228 | B169: -0.4812227338 | C169: =IF(A169<>"",RANK(A169,A$4:A$1003,1)+SUM(IF(A$4:A169=A169,1,0))-1.5,"") -> 164.5 | D169: -0.5409370336 | E169: 0.3151791025 | F169: 678.5818526
A170: -5.572211415 | B170: -0.4764669042 | C170: =IF(A170<>"",RANK(A170,A$4:A$1003,1)+SUM(IF(A$4:A170=A170,1,0))-1.5,"") -> 165.5 | D170: -0.5357536762 | E170: 0.3168708901 | F170: 680.3085443
A171: -5.531654416 | B171: -0.4729959816 | C171: =IF(A171<>"",RANK(A171,A$4:A$1003,1)+SUM(IF(A$4:A171=A171,1,0))-1.5,"") -> 166.5 | D171: -0.5305846732 | E171: 0.318108023 | F171: 681.970258
A172: -5.413936817 | B172: -0.4629215507 | C172: =IF(A172<>"",RANK(A172,A$4:A$1003,1)+SUM(IF(A$4:A172=A172,1,0))-1.5,"") -> 167.5 | D172: -0.525429808 | E172: 0.3217102998 | F172: 683.8703457
A173: -5.406729051 | B173: -0.4623047004 | C173: =IF(A173<>"",RANK(A173,A$4:A$1003,1)+SUM(IF(A$4:A173=A173,1,0))-1.5,"") -> 168.5 | D173: -0.5202888673 | E173: 0.3219314147 | F173: 685.3852865
A174: -5.385354573 | B174: -0.4604754438 | C174: =IF(A174<>"",RANK(A174,A$4:A$1003,1)+SUM(IF(A$4:A174=A174,1,0))-1.5,"") -> 169.5 | D174: -0.5151616409 | E174: 0.3225874968 | F174: 686.9390479
A175: -5.362285784 | B175: -0.4585011857 | C175: =IF(A175<>"",RANK(A175,A$4:A$1003,1)+SUM(IF(A$4:A175=A175,1,0))-1.5,"") -> 170.5 | D175: -0.5100479216 | E175: 0.3232962054 | F175: 688.4878442
A176: -5.327591752 | B176: -0.4555320236 | C176: =IF(A176<>"",RANK(A176,A$4:A$1003,1)+SUM(IF(A$4:A176=A176,1,0))-1.5,"") -> 171.5 | D176: -0.5049475056 | E176: 0.3243632672 | F176: 690.0579671
A177: -5.286154034 | B177: -0.4519857279 | C177: =IF(A177<>"",RANK(A177,A$4:A$1003,1)+SUM(IF(A$4:A177=A177,1,0))-1.5,"") -> 172.5 | D177: -0.4998601918 | E177: 0.3256396321 | F177: 691.6323216
A178: -5.2240073 | B178: -0.4466671265 | C178: =IF(A178<>"",RANK(A178,A$4:A$1003,1)+SUM(IF(A$4:A178=A178,1,0))-1.5,"") -> 173.5 | D178: -0.494785782 | E178: 0.3275577103 | F178: 693.2464436
A179: -5.189212578 | B179: -0.4436893473 | C179: =IF(A179<>"",RANK(A179,A$4:A$1003,1)+SUM(IF(A$4:A179=A179,1,0))-1.5,"") -> 174.5 | D179: -0.4897240809 | E179: 0.3286335992 | F179: 694.7718723
A180: -5.168187613 | B180: -0.4418900024 | C180: =IF(A180<>"",RANK(A180,A$4:A$1003,1)+SUM(IF(A$4:A180=A180,1,0))-1.5,"") -> 175.5 | D180: -0.484674896 | E180: 0.3292844028 | F180: 696.250075
A181: -5.121767648 | B181: -0.4379173193 | C181: =IF(A181<>"",RANK(A181,A$4:A$1003,1)+SUM(IF(A$4:A181=A181,1,0))-1.5,"") -> 176.5 | D181: -0.4796380375 | E181: 0.3307231101 | F181: 697.776669
A182: -5.007371547 | B182: -0.4281271466 | C182: =IF(A182<>"",RANK(A182,A$4:A$1003,1)+SUM(IF(A$4:A182=A182,1,0))-1.5,"") -> 177.5 | D182: -0.4746133181 | E182: 0.3342792768 | F182: 699.454638
A183: -4.984551579 | B183: -0.426174183 | C183: =IF(A183<>"",RANK(A183,A$4:A$1003,1)+SUM(IF(A$4:A183=A183,1,0))-1.5,"") -> 178.5 | D183: -0.4696005533 | E183: 0.3349904641 | F183: 700.8871139
A184: -4.899900826 | B184: -0.4189296575 | C184: =IF(A184<>"",RANK(A184,A$4:A$1003,1)+SUM(IF(A$4:A184=A184,1,0))-1.5,"") -> 179.5 | D184: -0.4645995608 | E184: 0.3376337708 | F184: 702.4597874
A185: -4.72046701 | B185: -0.4035734695 | C185: =IF(A185<>"",RANK(A185,A$4:A$1003,1)+SUM(IF(A$4:A185=A185,1,0))-1.5,"") -> 180.5 | D185: -0.4596101611 | E185: 0.3432631992 | F185: 704.299324
A186: -4.719055083 | B186: -0.4034526349 | C186: =IF(A186<>"",RANK(A186,A$4:A$1003,1)+SUM(IF(A$4:A186=A186,1,0))-1.5,"") -> 181.5 | D186: -0.4546321768 | E186: 0.3433076362 | F186: 705.6009943
A187: -4.641013763 | B187: -0.3967737534 | C187: =IF(A187<>"",RANK(A187,A$4:A$1003,1)+SUM(IF(A$4:A187=A187,1,0))-1.5,"") -> 182.5 | D187: -0.4496654332 | E187: 0.3457671536 | F187: 707.1180827
A188: -4.614058704 | B188: -0.3944669032 | C188: =IF(A188<>"",RANK(A188,A$4:A$1003,1)+SUM(IF(A$4:A188=A188,1,0))-1.5,"") -> 183.5 | D188: -0.4447097574 | E188: 0.3466181789 | F188: 708.4688388
A189: -4.428297841 | B189: -0.378569238 | C189: =IF(A189<>"",RANK(A189,A$4:A$1003,1)+SUM(IF(A$4:A189=A189,1,0))-1.5,"") -> 184.5 | D189: -0.4397649793 | E189: 0.3525038846 | F189: 710.301173
A190: -4.313834613 | B190: -0.3687733206 | C190: =IF(A190<>"",RANK(A190,A$4:A$1003,1)+SUM(IF(A$4:A190=A190,1,0))-1.5,"") -> 185.5 | D190: -0.4348309305 | E190: 0.3561483462 | F190: 711.91768
A191: -4.246073735 | B191: -0.3629742533 | C191: =IF(A191<>"",RANK(A191,A$4:A$1003,1)+SUM(IF(A$4:A191=A191,1,0))-1.5,"") -> 186.5 | D191: -0.429907445 | E191: 0.3583120588 | F191: 713.3505318
A192: -4.179724783 | B192: -0.3572960205 | C192: =IF(A192<>"",RANK(A192,A$4:A$1003,1)+SUM(IF(A$4:A192=A192,1,0))-1.5,"") -> 187.5 | D192: -0.4249943588 | E192: 0.3604351044 | F192: 714.7628758
A193: -4.045897339 | B193: -0.3458428873 | C193: =IF(A193<>"",RANK(A193,A$4:A$1003,1)+SUM(IF(A$4:A193=A193,1,0))-1.5,"") -> 188.5 | D193: -0.4200915099 | E193: 0.3647303961 | F193: 716.437004
A194: -4.010604973 | B194: -0.3428225191 | C194: =IF(A194<>"",RANK(A194,A$4:A$1003,1)+SUM(IF(A$4:A194=A194,1,0))-1.5,"") -> 189.5 | D194: -0.4151987386 | E194: 0.3658659918 | F194: 717.6907992
A195: -3.920340075 | B195: -0.3350975274 | C195: =IF(A195<>"",RANK(A195,A$4:A$1003,1)+SUM(IF(A$4:A195=A195,1,0))-1.5,"") -> 190.5 | D195: -0.4103158866 | E195: 0.368775759 | F195: 719.1621995
A196: -3.89786962 | B196: -0.3331744756 | C196: =IF(A196<>"",RANK(A196,A$4:A$1003,1)+SUM(IF(A$4:A196=A196,1,0))-1.5,"") -> 191.5 | D196: -0.405442798 | E196: 0.369501292 | F196: 720.3296661
A197: -3.882889316 | B197: =+IF(A197<>"",(A197-K$2)/K$3,"") -> -0.331892441 | C197: =IF(A197<>"",RANK(A197,A$4:A$1003,1)+SUM(IF(A$4:A197=A197,1,0))-1.5,"") -> 192.5 | D197: =IF(A197<>"",NORMSINV(C197/($K$1)),"") -> -0.4005793186 | E197: =IF(A197<>"",NORMDIST(A197,$K$2,$K$3,1),"") -> 0.3699852392 | F197: =IF(A197<>"",-2*C197*LN(E197)-(2*$K$1-2*C197)*LN(1-E197),"") -> 721.4573028
A198: -3.880314285 | B198: -0.3316720663 | C198: =IF(A198<>"",RANK(A198,A$4:A$1003,1)+SUM(IF(A$4:A198=A198,1,0))-1.5,"") -> 193.5 | D198: -0.3957252958 | E198: 0.3700684478 | F198: 722.5313902
A199: -3.822585026 | B199: -0.3267315185 | C199: =IF(A199<>"",RANK(A199,A$4:A$1003,1)+SUM(IF(A$4:A199=A199,1,0))-1.5,"") -> 194.5 | D199: -0.3908805791 | E199: 0.3719354796 | F199: 723.8014928
A200: -3.816755624 | B200: -0.3262326304 | C200: =IF(A200<>"",RANK(A200,A$4:A$1003,1)+SUM(IF(A$4:A200=A200,1,0))-1.5,"") -> 195.5 | D200: -0.3860450196 | E200: 0.3721241776 | F200: 724.8694732
... 362 more rows

Sheet Example data set
A1: Example Data Set
A3: =+'General Info'!B6 -> Somewhere, CA
A4: Test Method
A5: X | B5: Y
A6: Alternate | B6: Designated
A7: 5655.74 | B7: 5650
A8: 6044.16 | B8: 6040
A9: 5783.44 | B9: 5790
A10: 5530.85 | B10: 5520
A11: 6138.03 | B11: 6140
A12: 5865.06 | B12: 5860
A13: 5666.66 | B13: 5650
A14: 6123.04 | B14: 6130
A15: 5829.36 | B15: 5820
A16: 6040.95 | B16: 6010
A17: 6008.81 | B17: 6000
A18: 5435.37 | B18: 5430
A19: 5601.08 | B19: 5600
A20: 5492.71 | B20: 5490
A21: 5796.65 | B21: 5810
A22: 6112.29 | B22: 6110
A23: 5957.71 | B23: 5940
A24: 5977.64 | B24: 5980
A25: 6081.94 | B25: 6100
A26: 5486.68 | B26: 5490
A27: 5504.95 | B27: 5500
A28: 5761.72 | B28: 5780
A29: 6107.12 | B29: 6100
A30: 5352 | B30: 5340
A31: 6037.93 | B31: 6040
A32: 6096.5 | B32: 6080
A33: 6108.76 | B33: 6100
A34: 5561.14 | B34: 5560
A35: 5850.84 | B35: 5850
A36: 5704.65 | B36: 5710
A37: 6012.85 | B37: 6010
A38: 5745.6 | B38: 5750
A39: 5949.39 | B39: 5960
A40: 5875.73 | B40: 5880
A41: 5892.61 | B41: 5890
A42: 5498.75 | B42: 5500
A43: 6106.17 | B43: 6110
A44: 5650.65 | B44: 5660
A45: 5577.68 | B45: 5580
A46: 5934.85 | B46: 5930
A47: 5671.56 | B47: 5680
A48: 6180.97 | B48: 6200
A49: 5835.95 | B49: 5840
A50: 5998.74 | B50: 6000
A51: 5950.86 | B51: 5950
A52: 5672.99 | B52: 5680
A53: 5669 | B53: 5680
A54: 5441.75 | B54: 5420
A55: 6022.06 | B55: 6030
A56: 5986.08 | B56: 6000
A57: 5527.25 | B57: 5520
A58: 5919.79 | B58: 5930
A59: 5768.17 | B59: 5750
A60: 5689.97 | B60: 5700
A61: 5658.84 | B61: 5640
A62: 5363.19 | B62: 5360
A63: 5542.67 | B63: 5540
A64: 5721.89 | B64: 5720
A65: 6302.83 | B65: 6310
A66: 6097.26 | B66: 6100
A67: 5502.26 | B67: 5510
A68: 5384.3 | B68: 5380
A69: 6362.51 | B69: 6360
A70: 5890.45 | B70: 5880
A71: 5989.1 | B71: 5980
A72: 6177.46 | B72: 6180
A73: 6170.59 | B73: 6160
A74: 5637.03 | B74: 5620
A75: 5825.74 | B75: 5830
A76: 5553.63 | B76: 5540
A77: 6075.04 | B77: 6060
A78: 5937.82 | B78: 5930
A79: 6316.07 | B79: 6320
A80: 5674.49 | B80: 5670
A81: 5392.21 | B81: 5390
A82: 5662.55 | B82: 5670
A83: 5875.88 | B83: 5890
A84: 5696.89 | B84: 5710
A85: 5499.8 | B85: 5500
A86: 5691.9 | B86: 5700
A87: 5827.25 | B87: 5840
A88: 5959.23 | B88: 5930
A89: 6120.21 | B89: 6120
A90: 5342.72 | B90: 5350
A91: 5490.68 | B91: 5460
A92: 6066.05 | B92: 6050
A93: 5852.83 | B93: 5850
A94: 5523.61 | B94: 5540
A95: 5852.31 | B95: 5850
A96: 5484.85 | B96: 5480
A97: 6094.07 | B97: 6090
A98: 5937.11 | B98: 5940
A99: 5709.46 | B99: 5690
A100: 5429.21 | B100: 5430
A101: 5857.94 | B101: 5860
A102: 6164.34 | B102: 6190
A103: 5969.56 | B103: 5970
A104: 5650.91 | B104: 5640
A105: 5526.36 | B105: 5520
A106: 5524.78 | B106: 5520
A107: 6010.76 | B107: 6020
A108: 6406.39 | B108: 6430
A109: 6160.05 | B109: 6140
A110: 6173.3 | B110: 6150
A111: 5902.01 | B111: 5940
A112: 5751 | B112: 5740
A113: 5939.29 | B113: 5940
A114: 5433.76 | B114: 5430
A115: 6001.7 | B115: 6000
A116: 5440.46 | B116: 5430
A117: 5593.15 | B117: 5570
A118: 6082.44 | B118: 6080
A119: 5688.63 | B119: 5710
A120: 5634.39 | B120: 5630
A121: 5701.17 | B121: 5690
A122: 5073.57 | B122: 5100
A123: 5889.66 | B123: 5880
A124: 6072.94 | B124: 6060
A125: 5811.92 | B125: 5810
A126: 6134.88 | B126: 6130
A127: 6232.1 | B127: 6230
A128: 5453.07 | B128: 5460
A129: 5896.32 | B129: 5900
A130: 6186.05 | B130: 6200
A131: 5551.89 | B131: 5550
A132: 5873.7 | B132: 5850
A133: 6087.98 | B133: 6080
A134: 5531.83 | B134: 5520
A135: 5594.44 | B135: 5600
A136: 5716.22 | B136: 5730
A137: 5921.94 | B137: 5930
A138: 5887.96 | B138: 5880
A139: 5995.15 | B139: 6000
A140: 5602.15 | B140: 5600
A141: 6130 | B141: 6110
A142: 5765.75 | B142: 5750
A143: 5333.87 | B143: 5350
A144: 6044.14 | B144: 6040
A145: 5481.8 | B145: 5470
A146: 6116.64 | B146: 6130
A147: 6131.8 | B147: 6120
A148: 5559.5 | B148: 5560
A149: 5610.82 | B149: 5610
A150: 5718.68 | B150: 5710
A151: 6158.77 | B151: 6160
A152: 5934.97 | B152: 5930
A153: 5411.43 | B153: 5420
A154: 5993.06 | B154: 5990
A155: 5480.58 | B155: 5470
A156: 6211.61 | B156: 6230
A157: 6081.7 | B157: 6090
A158: 5900.13 | B158: 5900
A159: 5963.04 | B159: 5980
A160: 5404.19 | B160: 5400
A161: 5485.92 | B161: 5490
A162: 5920.77 | B162: 5950
A163: 6315.12 | B163: 6300
A164: 5848.67 | B164: 5840
A165: 5649.89 | B165: 5640
A166: 5307.48 | B166: 5300
A167: 5739.96 | B167: 5740
A168: 5517.06 | B168: 5510
A169: 6114.72 | B169: 6120
A170: 5964.79 | B170: 5940
A171: 5930.66 | B171: 5940
A172: 5653.64 | B172: 5670
A173: 5433.93 | B173: 5440
A174: 5708.84 | B174: 5680
A175: 5494.19 | B175: 5510
A176: 5616.72 | B176: 5650
A177: 6236.38 | B177: 6230
A178: 6044.33 | B178: 6070
A179: 5486.16 | B179: 5490
A180: 5368.49 | B180: 5340
A181: 6321.26 | B181: 6310
A182: 5990.48 | B182: 6000
A183: 6170.94 | B183: 6160
A184: 5751.27 | B184: 5740
A185: 5496.08 | B185: 5500
A186: 5847.8 | B186: 5860
A187: 6022.26 | B187: 6030
A188: 6046.05 | B188: 6060
A189: 6047.46 | B189: 6040
A190: 5430.9 | B190: 5440
A191: 5956.99 | B191: 5940
A192: 5904.26 | B192: 5890
A193: 5645.53 | B193: 5630
A194: 5493.92 | B194: 5490
A195: 5396.6 | B195: 5430
A196: 5689.51 | B196: 5700
A197: 5640.99 | B197: 5640
A198: 5542.64 | B198: 5530
A199: 5406.04 | B199: 5420
A200: 6114.65 | B200: 6110
A201: 6043.77 | B201: 6050
... 364 more rows
